Workbook

Sheet Type marques
A1: Observatoire des prix et des marges
A3: Produits de grande consommation – Grande distribution | R3: EXHAUSTIF | S3: MDD | T3: PPX | U3: MFAB
Q4: Total EPICERIE | R4: -2.38 | S4: -0.14 | T4: 1.4 | U4: -3.37
Q5: Total LIQUIDES | R5: -1.46 | S5: 1.89 | T5: 0.59 | U5: -2.73
Q6: Total D.P.H. | R6: -2.84 | S6: -0.88 | T6: -0.21 | U6: -3.43
Q7: Total Produits Frais | R7: -1.25 | S7: 0.15 | T7: 0.45 | U7: -2.33
Q8: Total Non Alimentaire | R8: -1.61 | S8: -0.74 | T8: -1.22 | U8: -2.24
Q9: Total P.G.C. | R9: -2.39 | S9: -0.04 | T9: 0.93 | U9: -3.3
Q10: Total Alimentaire | R10: -2.12 | S10: 0.02 | T10: 0.79 | U10: -3.11
F11: EXHAUSTIF | H11: MARQUES FABRICANTS | J11: MDD | L11: PPX | Q11: Total GENERAL | R11: -2.1 | S11: 0 | T11: 0.69 | U11: -3.09
B12: ---EPICERIE | F12: =+R4 -> -2.38 | H12: =+U4 -> -3.37 | J12: =+S4 -> -0.14 | L12: =+T4 -> 1.4
B13: ---LIQUIDES | F13: =+R5 -> -1.46 | H13: =+U5 -> -2.73 | J13: =+S5 -> 1.89 | L13: =+T5 -> 0.59
B14: ---D.P.H. | F14: =+R6 -> -2.84 | H14: =+U6 -> -3.43 | J14: =+S6 -> -0.88 | L14: =+T6 -> -0.21
B15: --P.G.C. | F15: =+R9 -> -2.39 | H15: =+U9 -> -3.3 | J15: =+S9 -> -0.04 | L15: =+T9 -> 0.93
B16: --PRODUITS FRAIS L.S. | F16: =+R7 -> -1.25 | H16: =+U7 -> -2.33 | J16: =+S7 -> 0.15 | L16: =+T7 -> 0.45
B17: -ALIMENTAIRE (PGC+FLS) | F17: =+R10 -> -2.12 | H17: =+U10 -> -3.11 | J17: =+S10 -> 0.02 | L17: =+T10 -> 0.79
B18: -NON ALIMENTAIRE | F18: =+R8 -> -1.61 | H18: =+U8 -> -2.24 | J18: =+S8 -> -0.74 | L18: =+T8 -> -1.22
B19: TOTAL GENERAL | F19: =+R11 -> -2.1 | H19: =+U11 -> -3.09 | J19: =+S11 -> 0 | L19: =+T11 -> 0.69
B21: Leaders : 7 000 produits détenus par + 40 % des magasins en France.
B22: Plus Grandes Marques = "Majeurs": les références des marques majeures par catégories de produits (environ 1500 produits)
B23: Exhaustifs : totalité de produits suivis

Sheet Historiq
A1: Observatoire des prix et des marges | Q1: Evolution de l'inflation (inflation annuelle 2003/2002, 2004/2003 etc.)
Q2: Total circuits - par type de marques, et du Hard-Discount (en exhaustif)
A3: Produits de grande consommation – Grande distribution
Q4: TOTAL GENERAL
R5: Exhaustifs | S5: MdD | T5: Premiers Prix | U5: Mar. Fabricants | V5: Hard-Discounters | W5: MP HD
Q6: 2003-01-01 | R6: 2.23 | S6: 0.45 | T6: 1.02 | V6: -0.05 | W6: =+V6 -> -0.05
Q7: février | R7: 2.52 | S7: 0.48 | T7: 1.02 | V7: 0.05 | W7: 0.05
Q8: mars | R8: 2.82 | S8: 0.67 | T8: 1.18 | V8: -0.16 | W8: -0.16
Q9: avril | R9: 3.06 | S9: 0.59 | T9: 1.46 | V9: -0.15 | W9: -0.15
Q10: mai | R10: 3.02 | S10: 0.67 | T10: 1.15 | V10: -0.26 | W10: -0.26
Q11: juin | R11: 2.9 | S11: 0.98 | T11: 0.99 | V11: -0.63 | W11: -0.63
Q12: sept. | R12: 2.12 | S12: 0.51 | T12: 0.39 | V12: -0.73 | W12: -0.73
Q13: octobre | R13: 1.98 | S13: 0.45 | T13: -1.2 | V13: -0.48 | W13: -0.48
Q14: nov. | R14: 1.92 | S14: 0.36 | T14: -0.6 | V14: -1.02 | W14: -1.02
Q15: déc* | R15: 1.9 | S15: 0.215 | T15: -0.85 | V15: -1.09 | W15: -1.09
Q16: 2004-01-01 | R16: 1.88 | S16: 0.07 | T16: -1.1 | V16: -1.16 | W16: -1.16
Q17: février | R17: 1.78 | S17: 0.01 | T17: -1.43 | V17: -0.84 | W17: -0.84
Q18: mars | R18: 1.63 | S18: -0.27 | T18: -1.71 | V18: -0.75 | W18: -0.75
Q19: avril | R19: 1.37 | S19: -0.46 | T19: -2.61 | V19: -0.95 | W19: -0.95
Q20: mai | R20: 1.26 | S20: -0.57 | T20: -2.72 | V20: -1.03 | W20: -1.03
Q21: juin | R21: 1.09 | S21: -0.74 | T21: -3.3 | V21: -1.12 | W21: -1.12
Q22: juill** | R22: 0.92 | S22: -0.9 | T22: -3.53 | V22: -1.12 | W22: -1.12
Q23: août** | R23: 0.58 | S23: -1.06 | T23: -3.76 | V23: -1.11 | W23: -1.11
Q24: sept. | R24: -0.05 | S24: -1.29 | T24: -4.03 | V24: -1.11 | W24: -1.11
Q25: oct | R25: -0.38 | S25: -1.66 | T25: -4.16 | V25: -1.15 | W25: -1.15
Q26: nov | R26: -0.6 | S26: -1.82 | T26: -4.09 | V26: -1.42 | W26: -1.42
Q27: déc* | R27: -0.81 | S27: -2.03 | T27: -4.11 | V27: -1.53 | W27: -1.53
Q28: 2005-01-01 | R28: -1.01 | S28: -2.26 | T28: -4.11 | V28: -1.63 | W28: -1.63
Q29: février | R29: -1.17 | S29: -2.08 | T29: -4.09 | V29: -1.34 | W29: -1.34
Q30: mars | R30: -1.33 | S30: -2.12 | T30: -3.86 | V30: -2.12 | W30: -2.12
Q31: avril | R31: -1.34 | S31: -2.22 | T31: -3.28 | V31: -1.6 | W31: -1.6
Q32: mai | R32: -1.47 | S32: -2.49 | T32: -3.1 | V32: -1.58 | W32: -1.58
Q33: juin | R33: -1.52 | S33: -2.67 | T33: -2.91 | V33: -1.53 | W33: -1.53
Q34: juillet** | R34: -1 | S34: -2.7 | T34: -2.4 | V34: -1.5 | W34: -1.5
Q35: août** | R35: -1 | S35: -2.7 | T35: -2.4 | V35: -1.5 | W35: -1.5
Q36: sept. | R36: -0.54 | S36: -2.67 | T36: -1.83 | V36: -1.52 | W36: -1.52
Q37: oct. | R37: -0.15 | S37: -2.01 | T37: -1.88 | V37: -1.41 | W37: -1.41
Q38: nov. | R38: -0.21 | S38: -2.47 | T38: -1.8 | V38: -1.12 | W38: =+V38 -> -1.12
Q39: déc.* | R39: -0.005 | S39: -2.405 | T39: -1.42 | V39: -0.93 | W39: -0.93
Q40: 2006-01-01 | R40: 0.2 | S40: -2.34 | T40: -1.04 | V40: -0.74 | W40: -0.74
Q41: 2006-02-01 | R41: 0.24 | S41: -2.2 | T41: -0.88 | V41: -0.4 | W41: -0.4
Q42: 2006-03-01 | R42: 0.41 | S42: -1.81 | T42: -0.65 | V42: -0.05 | W42: -0.05
Q43: 2006-04-01 | R43: 0.39 | S43: -1.49 | T43: -0.34 | V43: -0.16 | W43: -0.16
Q44: 2006-05-01 | R44: 0.41 | S44: -1.15 | T44: -0.14 | V44: -0.32 | W44: -0.32
Q45: 2006-06-01 | R45: 0.2 | S45: -0.85 | T45: 0.05 | V45: -0.68 | W45: -0.68
Q46: 2006-07-01 | R46: 0.3375 | S46: -0.375 | T46: 0.3425 | V46: -0.39 | W46: -0.39
Q47: 2006-08-01 | R47: 0.37 | S47: 0.25 | T47: 0.73 | V47: -0.28 | W47: -0.28
Q48: 2006-09-01 | R48: 0.09 | S48: -0.21 | T48: 0.1 | V48: -0.31 | W48: -0.31
Q49: 2006-10-01 | R49: 0.15 | S49: 0.2 | T49: 0.57 | V49: 0.05 | W49: 0.05
Q50: 2006-11-01 | R50: 0.07 | S50: 0.36 | T50: 0.53 | V50: 0.52 | W50: 0.52
Q51: déc.*-06 | R51: -0.045 | S51: 0.465 | T51: 0.78 | V51: 0.4 | W51: 0.4
Q52: 2007-01-01 | R52: -0.16 | S52: 0.57 | T52: 1.03 | V52: 0.28 | W52: 0.28
Q53: fev-07 | R53: -0.44 | S53: 0.44 | T53: 0.95 | V53: 0.43 | W53: 0.43
Q54: 2007-03-01 | R54: -0.1 | S54: 1.22 | T54: 1.28 | V54: 0.5 | W54: 0.5
Q55: 2007-04-01 | R55: -0.74 | S55: 0.6 | T55: 0.88 | V55: -0.15 | W55: -0.15
Q56: 2007-05-01 | R56: -0.74 | S56: 0.91 | T56: 1.03 | V56: -0.13 | W56: -0.13
Q57: 2007-06-01 | R57: -0.49 | S57: 1.11 | T57: 1.14 | V57: 0.48 | W57: 0.48
Q58: 2007-07-01 | R58: -0.37 | S58: 1.39 | T58: 1.43 | V58: 0.68 | W58: 0.68
Q59: 2007-08-01 | R59: -0.07 | S59: 1.9 | T59: 1.92 | V59: 1.29 | W59: 1.29
Q60: 2007-09-01 | R60: -0.09 | S60: 1.81 | T60: 2.26 | V60: 1.24 | W60: 1.24
Q61: 2007-10-01 | R61: 0.07 | S61: 1.62 | T61: 2.01 | V61: 1.3 | W61: 1.3
Q62: 2007-11-01 | R62: 0.43 | S62: 1.98 | T62: 2.54 | V62: 0.35 | W62: 0.35
Q63: 2007-12-01 | R63: 1.42 | S63: 2.63 | T63: 3.43 | V63: 2.05 | W63: 2.05
Q64: 2008-01-01 | R64: 2.39 | S64: 3.1 | T64: 3.63 | V64: 3.76 | W64: 3.76
Q65: 2008-02-01 | R65: 3.3 | S65: 3.77 | T65: 4.55 | V65: 4.074762883 | W65: 4.074762883
Q66: 2008-03-01 | R66: 3.55 | S66: 3.81 | T66: 4.86 | V66: 3.82 | W66: 3.82
Q67: 2008-04-01 | R67: 3.67 | S67: 3.93 | T67: 5.2 | V67: 3.77 | W67: 3.77
Q68: 2008-05-01 | R68: 3.91 | S68: 3.8 | T68: 5.68 | V68: 3.79 | W68: 3.79
Q69: 2008-06-01 | R69: 3.86 | S69: 3.94 | T69: 6.06 | V69: 3.8 | W69: 4.1
Q70: 2008-07-01 | R70: 4.04 | S70: 4.2 | T70: 6.19 | V70: 4.96 | W70: 5.2
Q71: 2008-08-01 | R71: 4.03 | S71: 4.17 | T71: 6.48 | V71: 4.31 | W71: 4.61
Q72: 2008-09-01 | R72: 4.12 | S72: 4.32 | T72: 6.68 | V72: 3.48 | W72: 4.72
Q73: 2008-10-01 | R73: 4.04 | S73: 4.12 | T73: 6.54 | V73: 4.05 | W73: 5.13
Q74: 2008-11-01 | R74: 3.98 | S74: 4.08 | T74: 6.48 | V74: 3.39 | W74: 4.97
Q75: 2008-12-01 | R75: 3.06 | S75: 3.64 | T75: 6 | V75: 2.21 | W75: 3.19
Q76: 2009-01-01 | R76: 2.01 | S76: 2.58 | T76: 5.17 | V76: 1.71 | W76: 2.54
Q77: 2009-02-01 | R77: 1.54 | S77: 1.91 | T77: 4.26 | V77: 1.28 | W77: 2.19
Q78: 2009-03-01 | R78: 1.29 | S78: 1.83 | T78: 3.93 | V78: 0.84 | W78: 1.84
Q79: 2009-04-01 | R79: 1.04 | S79: 1.53 | T79: 3.39 | V79: 1.51 | W79: 2.08
Q80: 2009-05-01 | R80: 0.91 | S80: 1.19 | T80: 2.83 | V80: 1.42 | W80: 1.82
Q81: 2009-06-01 | R81: 0.81 | S81: 1.11 | T81: 2.74 | V81: 0.76 | W81: 1.3
Q82: 2009-07-01 | R82: 0.57 | S82: 0.63 | T82: 2.26 | V82: 0.79 | W82: 1.33
Q83: 2009-08-01 | R83: 0.52 | S83: 0.36 | T83: 1.88 | V83: 0.61 | W83: 0.93
Q84: 2009-09-01 | R84: 0.65 | S84: 0.19 | T84: 1.55 | V84: 0.31 | W84: 0.54
Q85: 2009-10-01 | R85: 0.39 | S85: -0.21 | T85: 1.12 | V85: 0.38 | W85: 0.46
Q86: 2009-11-01 | R86: 0.22 | S86: -0.62 | T86: 0.6 | V86: -0.03 | W86: 0.02
Q87: 2009-12-01 | R87: 0.06 | S87: -0.85 | T87: 0.13 | V87: 0.14 | W87: 0.07
Q88: 2010-01-01 | R88: 0.11 | S88: -0.94 | T88: -0.24 | V88: -0.81 | W88: -0.85
Q89: 2010-02-01 | R89: 0.17 | S89: -0.61 | T89: -0.14 | V89: -1.33 | W89: -1.383600256
Q90: 2010-03-01 | R90: 0.29 | S90: -0.57 | T90: -0.35 | V90: -1.54 | W90: -1.65
Q91: 2010-04-01 | R91: 0.18 | S91: -0.69 | T91: -0.85 | V91: -1.6 | W91: -1.73
Q92: 2010-05-01 | R92: 0.31 | S92: -0.81 | T92: -1.06 | V92: -1.53 | W92: -1.74
Q93: 2010-06-01 | R93: -0.04 | S93: -1.09 | T93: -1.36 | V93: -1.57 | W93: -1.83
Q94: 2010-07-01 | R94: -0.31 | S94: -1.44 | T94: -1.62 | V94: -1.94 | W94: -2.2
Q95: 2010-08-01 | R95: -0.62 | S95: -1.53 | T95: -1.69 | V95: -1.94 | W95: -2.03
Q96: 2010-09-01 | R96: -0.85 | S96: -1.68 | T96: -1.84 | V96: -2.05 | W96: -2.01
Q97: 2010-10-01 | R97: -1.01 | S97: -1.64 | T97: -1.8 | V97: -2 | W97: -2.29
Q98: 2010-11-01 | R98: -0.96 | S98: -1.59 | T98: -1.73 | V98: -1.16 | W98: =-1.21 -> -1.21
Q99: 2010-12-01 | R99: -0.91 | S99: -1.6 | T99: -1.67 | V99: -0.14 | W99: -0.1097482973
Q100: 2011-01-01 | R100: -0.94 | S100: -1.28 | T100: -1.94 | V100: 1.15 | W100: 1.237057945
Q101: 2011-02-01 | R101: -1.03 | S101: -1.27 | T101: -1.36 | V101: 1.7 | W101: 1.904967753
Q102: 2011-03-01 | R102: -0.53 | S102: -0.8 | T102: -0.97 | V102: 1.62 | W102: 1.826003532
Q103: 2011-04-01 | R103: 0.04 | S103: -0.14 | T103: -0.09 | V103: 2.03 | W103: 2.29563361
Q104: 2011-05-01 | R104: 0.61 | S104: 0.86 | T104: 0.86 | V104: 3.28 | W104: 3.479224743
Q105: 2011-06-01 | R105: 1.45 | S105: 2.35 | T105: 1.46 | V105: 3.9 | W105: 4.090351438
Q106: 2011-07-01 | R106: 1.84 | S106: 3.07 | T106: 1.85 | V106: 4.2175 | W106: 4.4175
Q107: 2011-08-01 | R107: 1.98 | S107: 3.34 | T107: 2.03 | V107: 4.083125 | W107: 4.283125
Q108: 2011-09-01 | R108: 2.13 | S108: 3.81 | T108: 2.49 | V108: 6.02 | W108: 6.310419028
Q109: 2011-10-01 | R109: 2.34 | S109: 4.19 | T109: 2.52 | V109: 6.21 | W109: 7.062869892
Q110: 2011-11-01 | R110: 2.57 | S110: 4.57 | T110: 2.72 | V110: 6.39 | W110: 7.482594018
Q111: 2011-12-01 | R111: 2.65 | S111: 4.75 | T111: 3.04 | V111: 6.76 | W111: 7.902914929
Q112: 2012-01-01 | R112: 2.7 | S112: 4.88 | T112: 3.21 | V112: 6.31 | W112: 7.927554314
Q113: 2012-02-01 | R113: 2.74 | S113: 4.81 | T113: 3.24 | V113: 5.71 | W113: 6.909518354
Q114: 2012-03-01 | R114: 2.36 | S114: 4.74 | T114: 3.41 | V114: 5.69 | W114: 7.064485892
Q115: 2012-04-01 | R115: 1.77 | S115: 4.15 | T115: 3.18 | V115: 5.59 | W115: 6.825569933
Q116: 2012-05-01 | R116: 1.53 | S116: 3.67 | T116: 2.88 | V116: 5.6 | W116: 6.826627916
Q117: 2012-06-01 | R117: 1.11 | S117: 2.69 | T117: 2.72 | V117: 3.79 | W117: 4.483791434
Q118: 2012-07-01 | R118: 0.84 | S118: 2.15 | T118: 2.53 | V118: 3.74 | W118: 4.578780795
Q119: 2012-08-01 | R119: 0.84 | S119: 1.94 | T119: 2.58 | V119: 2.95 | W119: 3.780169704
Q120: 2012-09-01 | R120: 0.54 | S120: 1.4 | T120: 2.02 | V120: 2.8 | W120: 3.665342363
Q121: 2012-10-01 | R121: 0.47 | S121: 1.11 | T121: 2.04 | V121: 2.63 | W121: 3.360665166
Q122: 2012-11-01 | R122: 0.23 | S122: 0.56 | T122: 1.89 | V122: 2 | W122: 2.771583636
Q123: 2012-12-01 | R123: 0.11 | S123: 0.02 | T123: 1.71 | V123: 1.5 | W123: 2.198199553
Q124: 2013-01-01 | R124: 0.1 | S124: -0.19 | T124: 1.79 | V124: 1.5 | W124: 2.198199553
Q125: 2013-02-01 | R125: -0.11 | S125: -0.53 | T125: 1.56 | V125: 1.53 | W125: 2.28107979
Q126: 2013-03-01 | R126: -0.11 | S126: -0.5 | T126: 1.58 | V126: 1.78 | W126: 2.481982542
Q127: 2013-04-01 | R127: -0.42 | S127: -0.54 | T127: 1.45 | V127: 1.99 | W127: 2.800690439
Q128: 2013-05-01 | R128: -0.53 | S128: -0.62 | T128: 1.1 | V128: 2.33 | W128: 3.050478703
Q129: 2013-06-01 | R129: -0.57 | S129: -0.61 | T129: 1.35 | V129: 2.29 | W129: 3.094920635
Q130: 2013-07-01 | R130: -0.72 | S130: -0.6 | T130: 1.51 | V130: 2.37 | W130: 3.44306403
Q131: 2013-08-01 | R131: -0.77 | S131: -0.6 | T131: 1.58 | V131: 2.6 | W131: 3.281106236
Q132: 2013-09-01 | R132: -0.88 | S132: -0.63 | T132: 1.8 | V132: 2.34 | W132: 3.246252651
Q133: 2013-10-01 | R133: -1.04 | S133: -0.61 | T133: 1.85 | V133: 2.59 | W133: 3.424057284
Q134: 2013-11-01 | R134: -1.08 | S134: -0.41 | T134: 1.92 | V134: 2.19 | W134: 3.108403323
Q135: 2013-12-01 | R135: -1.13 | S135: -0.06 | T135: 2 | V135: 0.72 | W135: 1.466948662
Q136: 2014-01-01 | R136: -1.18 | S136: 0.08 | T136: 1.69 | V136: -0.3 | W136: 0.3911500233
Q137: 2014-02-01 | R137: -1.28 | S137: 0.12 | T137: 1.44 | U137: -1.99 | V137: -0.87 | W137: 0.0002358992551
Q138: 2014-03-01 | R138: -1.31 | S138: 0.21 | T138: 1.48 | U138: -2.07 | V138: -2.2 | W138: -1.870646296
Q139: 2014-04-01 | R139: -1.31 | S139: 0.1 | T139: 1.44 | U139: -2 | V139: -3.51 | W139: -3.269808832
Q140: 2014-05-01 | R140: -1.91 | S140: -0.3 | T140: 1.12 | U140: -2.71 | V140: -4.15 | W140: -3.730280745
Q141: 2014-06-01 | R141: -1.91 | S141: -0.13 | T141: 0.72 | U141: ='[1]Type marques'!L19 -> -2.75 | V141: -4.68 | W141: -4.684436493
Q142: 2014-07-01 | R142: -2.1 | S142: 0 | T142: 0.69 | U142: -3.09 | V142: -5.38 | W142: -5.440880645
Q143: *Les chiffres de décembre sont estimés par interpolation linéaire
R188: =+R183-1 -> -1 | S188: =+S183-1 -> -1 | T188: =+T183-1 -> -1 | V188: =+V183-1 -> -1

Sheet Circuits
A1: Observatoire des prix et des marges
A3: Produits de grande consommation – Grande distribution
O4: Hypers | P4: Supers | Q4: H.D. | R4: GMS
N5: Exhaustif | O5: =+O9 -> -2.26 | P5: =+O10 -> -1.72 | Q5: =+O11 -> -5.38 | R5: =+O12 -> -2.1
N6: Marques Fabricants | O6: -3.18 | P6: -2.89 | Q6: -5.35 | R6: -3.09
O8: Exha | R8: Mdd | S8: PPx
N9: HM | O9: -2.26 | P9: -3.18 | Q9: -0.11 | R9: 1.07
N10: SM | O10: -1.72 | P10: -2.89 | Q10: 0.44 | R10: 0.38
N11: HD | O11: -5.38 | P11: -5.35 | Q11: -5.58 | R11: -4.52
N12: TTMAG | O12: -2.1 | P12: -3.09 | Q12: 0 | R12: 0.69
B57: *Plus Grandes Marques : les références des marques majeures par catégories de produits, définies en GMS

Sheet HistoriqCircuits
A1: Observatoire des prix et des marges | P1: Evolution de l'INFLATION ANNUELLE par TYPES de CIRCUITS
P2: pour les Produits PGC+PFLS en Exhaustif
A3: Produits de grande consommation – Grande distribution
P4: TOTAL GENERAL | R4: Hypers | S4: Supers | T4: Hard-Discount | U4: GMS
Q5: Janvier 2005 | R5: -0.012 | S5: -0.0068 | T5: -0.0163 | U5: -0.0101
Q6: Février 2005 | R6: -0.0129 | S6: -0.01 | T6: -0.0134 | U6: -0.0117
Q7: Mars 2005 | R7: -0.014 | S7: -0.0125 | T7: -0.0212 | U7: -0.0133
Q8: Avril 2005 | R8: -0.0146 | S8: -0.012 | T8: -0.016 | U8: -0.0134
Q9: Mai 2005 | R9: -0.0158 | S9: -0.0134 | T9: -0.0158 | U9: -0.0147
Q10: Juin 2005 | R10: -0.0165 | S10: -0.0136 | T10: -0.0153 | U10: -0.0152
Q11: Juillet 2005* | R11: -0.0121 | S11: -0.01176666667 | T11: -0.01526666667 | U11: -0.01193333333
Q12: Août 2005* | R12: -0.0077 | S12: -0.009933333333 | T12: -0.01523333333 | U12: -0.008666666667
Q13: Sept. 2005 | R13: -0.0033 | S13: -0.0081 | T13: -0.0152 | U13: -0.0054
Q14: Oct. 2005 | R14: -0.001 | S14: -0.0021 | T14: -0.0141 | U14: -0.0015
Q15: Nov. 2005 | R15: -0.0004 | S15: -0.0042 | T15: -0.0112 | U15: -0.0021
Q16: Déc.2005* | R16: 0.0021 | S16: -0.0027 | T16: -0.0093 | U16: -5e-05
Q17: Janvier 2006 | R17: 0.0046 | S17: -0.0012 | T17: -0.0074 | U17: 0.002
Q18: Février 2006 | R18: 0.0048 | S18: -0.0007 | T18: -0.004 | U18: 0.0024
Q19: Mars 2006 | R19: 0.0061 | S19: 0.0018 | T19: -0.0005 | U19: 0.0041
Q20: Avril 2006 | R20: 0.0054 | S20: 0.0022 | T20: -0.0016 | U20: 0.0039
Q21: Mai 2006 | R21: 0.0054 | S21: 0.0024 | T21: -0.0032 | U21: 0.0041
Q22: Juin 2006 | R22: 0.0032 | S22: 0.0005 | T22: -0.0068 | U22: 0.002
Q23: Juillet 2006 | R23: 0.00255 | S23: 0.005325 | T23: -0.0039 | U23: 0.003375
Q24: Août 2006 | R24: 0.0008 | S24: 0.0092 | T24: -0.0028 | U24: 0.0037
Q25: Sept. 2006 | R25: 0 | S25: 0.0022 | T25: -0.0031 | U25: 0.0009
Q26: Oct. 2006 | R26: -0.0007 | S26: 0.00048 | T26: 0.0005 | U26: 0.00015
Q27: Nov.2006 | R27: 0.0004 | S27: 0.0012 | T27: 0.00052 | U27: 0.0007
Q28: Déc.2006* | R28: -0.0017 | S28: 0.00145 | T28: 0.00166 | U28: -0.00045
Q29: Jan.2007 | R29: -0.0038 | S29: 0.0017 | T29: 0.0028 | U29: -0.0016
Q30: Fév. 2007 | R30: -0.0077 | S30: 0.0012 | T30: 0.0043 | U30: -0.0044
Q31: 2007-03-01 | R31: -0.0062 | S31: 0.0026 | T31: 0.005 | U31: -0.001
Q32: 2007-04-01 | R32: -0.0089 | S32: -0.0036 | T32: -0.0015 | U32: -0.0074
Q33: 2007-05-01 | R33: -0.0107 | S33: 0.0015 | T33: -0.0013 | U33: -0.0074
Q34: 2007-06-01 | R34: -0.0076 | S34: 0.0022 | T34: 0.0048 | U34: -0.0049
Q35: 2007-07-01 | R35: -0.0073 | S35: 0.0042 | T35: 0.0068 | U35: -0.0037
Q36: 2007-08-01 | R36: -0.0053 | S36: 0.0075 | T36: 0.0129 | U36: -0.0007
Q37: 2007-09-01 | R37: -0.0032 | S37: 0.0042 | T37: 0.0124 | U37: -0.0009
Q38: 2007-10-01 | R38: -0.001 | S38: 0.0044 | T38: 0.013 | U38: 0.0007
Q39: 2007-11-01 | R39: 0.0033 | S39: 0.0067 | T39: 0.0035 | U39: 0.0043
Q40: 2007-12-01 | R40: 0.0131 | S40: 0.0164 | T40: 0.0205 | U40: 0.0142
Q41: 2008-01-01 | R41: 0.0241 | S41: 0.0233 | T41: 0.0376 | U41: 0.0239
Q42: 2008-02-01 | R42: 0.0332 | S42: 0.0324 | T42: 0.04074762883 | U42: 0.033
Q43: 2008-03-01 | R43: 0.0344 | S43: 0.0388 | T43: 0.0382 | U43: 0.0355
Q44: 2008-04-01 | R44: 0.0353 | S44: 0.0413 | T44: 0.0377 | U44: 0.0367
Q45: 2008-05-01 | R45: 0.039 | S45: 0.0392 | T45: 0.0379 | U45: 0.0391
Q46: 2008-06-01 | R46: 0.0385 | S46: 0.0388 | T46: 0.038 | U46: 0.0386
Q47: 2008-07-01 | R47: 0.0401 | S47: 0.0414 | T47: 0.0496 | U47: 0.0404
Q48: 2008-08-01 | R48: 0.0393 | S48: 0.0434 | T48: 0.0431 | U48: 0.0403
Q49: 2008-09-01 | R49: 0.0394 | S49: 0.0463 | T49: 0.0348 | U49: 0.0412
Q50: 2008-10-01 | R50: 0.0386 | S50: 0.0457 | T50: 0.0405 | U50: 0.0404
Q51: 2008-11-01 | R51: 0.0377 | S51: 0.046 | T51: 0.0339 | U51: 0.0398
Q52: 2008-12-01 | R52: 0.0282 | S52: 0.0386 | T52: 0.0221 | U52: 0.0306
Q53: 2009-01-01 | R53: 0.018 | S53: 0.0269 | T53: 0.0171 | U53: 0.0201
Q54: 2009-02-01 | R54: 0.014 | S54: 0.0195 | T54: 0.0128 | U54: 0.0154
Q55: 2009-03-01 | R55: 0.0124 | S55: 0.0145 | T55: 0.0084 | U55: 0.0129
Q56: 2009-04-01 | R56: 0.0101 | S56: 0.011 | T56: 0.0151 | U56: 0.0104
Q57: 2009-05-01 | R57: 0.0089 | S57: 0.0098 | T57: 0.0142 | U57: 0.0091
Q58: 2009-06-01 | R58: 0.0079 | S58: 0.0087 | T58: 0.0076 | U58: 0.0081
Q59: 2009-07-01 | R59: 0.0048 | S59: 0.0087 | T59: 0.0079 | U59: 0.0057
Q60: 2009-08-01 | R60: 0.0057 | S60: 0.0039 | T60: 0.0061 | U60: 0.0057
Q61: 2009-09-01 | R61: 0.0074 | S61: 0.0038 | T61: 0.0031 | U61: 0.0065
Q62: 2009-10-01 | R62: 0.0051 | S62: 0.0002 | T62: 0.0038 | U62: 0.0039
Q63: 2009-11-01 | R63: 0.0039 | S63: -0.0027 | T63: -0.0003 | U63: 0.0022
Q64: 2009-12-01 | R64: 0.0025 | S64: -0.0057 | T64: 0.0014 | U64: 0.0006
Q65: 2010-01-01 | R65: 0.0025 | S65: -0.0031 | T65: -0.0081 | U65: 0.0011
Q66: 2010-02-01 | R66: 0.0029 | S66: -0.0018 | T66: -0.0133 | U66: 0.0017
Q67: 2010-03-01 | R67: 0.0035 | S67: 0.0012 | T67: -0.0154 | U67: 0.0029
Q68: 2010-04-01 | R68: 0.0033 | S68: 0.0033 | T68: -0.016 | U68: 0.0018
Q69: 2010-05-01 | R69: 0.0026 | S69: 0.0049 | T69: -0.0153 | U69: 0.0031
Q70: 2010-06-01 | R70: -0.0014 | S70: 0.0025 | T70: -0.0157 | U70: -0.0004
Q71: 2010-07-01 | R71: -0.0031 | S71: -0.003 | T71: -0.0194 | U71: -0.0031
Q72: 2010-08-01 | R72: -0.0065 | S72: -0.005 | T72: -0.0194 | U72: -0.0062
Q73: 2010-09-01 | R73: -0.0087 | S73: -0.0079 | T73: -0.0205 | U73: -0.0085
Q74: 2010-10-01 | R74: -0.0105 | S74: -0.0087 | T74: -0.02 | U74: -0.0101
Q75: 2010-11-01 | R75: -0.0099 | S75: -0.0086 | T75: -0.0116 | U75: -0.0096
Q76: 2010-12-01 | R76: -0.0097 | S76: -0.0073 | T76: -0.0014 | U76: -0.0091
Q77: 2011-01-01 | R77: -0.0093 | S77: -0.0098 | T77: 0.0115 | U77: -0.0094
Q78: 2011-02-01 | R78: -0.0108 | S78: -0.0088 | T78: 0.017 | U78: -0.0103
Q79: 2011-03-01 | R79: -0.0061 | S79: -0.0028 | T79: 0.0162 | U79: -0.0053
Q80: 2011-04-01 | R80: -0.0001 | S80: 0.002 | T80: 0.0203 | U80: 0.0004
Q81: 2011-05-01 | R81: 0.0056 | S81: 0.0076 | T81: 0.0329 | U81: 0.0061
Q82: 2011-06-01 | R82: 0.0137 | S82: 0.0166 | T82: 0.0391 | U82: 0.0145
Q83: 2011-07-01 | R83: 0.0168 | S83: 0.0234 | T83: 0.042175 | U83: 0.0184
Q84: 2011-08-01 | R84: 0.0182 | S84: 0.025 | T84: 0.04083125 | U84: 0.0198
Q85: 2011-09-01 | R85: 0.0193 | S85: 0.0276 | T85: 0.0602 | U85: 0.0213
Q86: 2011-10-01 | R86: 0.0217 | S86: 0.0284 | T86: 0.0621 | U86: 0.0234
Q87: 2011-11-01 | R87: 0.0238 | S87: 0.0313 | T87: 0.0639 | U87: 0.0257
Q88: 2011-12-01 | R88: 0.0245 | S88: 0.0325 | T88: 0.0676 | U88: 0.0265
Q89: 2012-01-01 | R89: 0.0253 | S89: 0.0332 | T89: 0.0631 | U89: 0.027
Q90: 2012-02-01 | R90: 0.0258 | S90: 0.0327 | T90: 0.0571 | U90: 0.0274
Q91: 2012-03-01 | R91: 0.0218 | S91: 0.0294 | T91: 0.0568 | U91: 0.0236
Q92: 2012-04-01 | R92: 0.0159 | S92: 0.0235 | T92: 0.056 | U92: 0.0177
Q93: 2012-05-01 | R93: 0.0133 | S93: 0.0215 | T93: 0.0519 | U93: 0.0153
Q94: 2012-06-01 | R94: 0.0098 | S94: 0.0153 | T94: 0.0379 | U94: 0.0111
Q95: 2012-07-01 | R95: 0.0063 | S95: 0.0116 | T95: 0.0372 | U95: 0.0084
Q96: 2012-08-01 | R96: 0.0071 | S96: 0.0103 | T96: 0.0295 | U96: 0.0084
Q97: 2012-09-01 | R97: 0.0047 | S97: 0.0063 | T97: 0.0279 | U97: 0.0054
Q98: 2012-10-01 | R98: 0.0035 | S98: 0.0065 | T98: 0.0263 | U98: 0.0047
Q99: 2012-11-01 | R99: 0.0011 | S99: 0.0042 | T99: 0.02 | U99: 0.0023
Q100: 2012-12-01 | R100: -0.0002 | S100: 0.0034 | T100: 0.0149 | U100: 0.0011
Q101: 2013-01-01 | R101: -0.0006 | S101: 0.0034 | T101: 0.0191 | U101: 0.001
Q102: 2013-02-01 | R102: -0.0025 | S102: 0.0012 | T102: 0.0151 | U102: -0.0011
Q103: 2013-03-01 | R103: -0.0029 | S103: 0.0019 | T103: 0.0175 | U103: -0.0011
Q104: 2013-04-01 | R104: -0.0066 | S104: 0 | T104: 0.0197 | U104: -0.0042
Q105: 2013-05-01 | R105: -0.0079 | S105: -0.0007 | T105: 0.0233 | U105: -0.0053
Q106: 2013-06-01 | R106: -0.0092 | S106: 0.0004 | T106: 0.0227 | U106: -0.0057
Q107: 2013-07-01 | R107: -0.0105 | S107: -0.0017 | T107: 0.0236 | U107: -0.0072
Q108: 2013-08-01 | R108: -0.0113 | S108: -0.0018 | T108: 0.0259 | U108: -0.0077
Q109: 2013-09-01 | R109: -0.0121 | S109: -0.0028 | T109: 0.0234 | U109: -0.0088
Q110: 2013-10-01 | R110: -0.0136 | S110: -0.005 | T110: 0.0259 | U110: -0.0104
Q111: 2013-11-01 | R111: -0.0135 | S111: -0.0061 | T111: 0.0219 | U111: -0.0108
Q112: 2013-12-01 | R112: -0.0137 | S112: -0.0066 | T112: 0.0072 | U112: -0.0113
Q113: 2014-01-01 | R113: -0.0137 | S113: -0.0083 | T113: -0.003 | U113: -0.0118
Q114: 2014-02-01 | R114: -0.0143 | S114: -0.0094 | T114: -0.0087 | U114: -0.0128
Q115: 2014-03-01 | R115: -0.0147 | S115: -0.0096 | T115: -0.022 | U115: -0.0131
Q116: 2014-04-01 | R116: -0.0145 | S116: -0.0096 | T116: -0.0351 | U116: -0.0131
Q117: 2014-05-01 | R117: -0.0204 | S117: -0.016 | T117: -0.0415 | U117: -0.0191
Q118: 2014-06-01 | R118: -0.0203 | S118: -0.0164 | T118: -0.0468 | U118: -0.0191
Q119: 2014-07-01 | R119: -0.0226 | S119: -0.0172 | T119: -0.0538 | U119: -0.021
Q120: *Chiffres estimés par interpolation linéaire

Sheet Familles Plus
A1: Observatoire des prix et des marges | W1: grprd | X1: Fam/ray | Y1: Exhaustif | Z1: MDD | AA1: PPX | AB1: mfab
W2: FA00018 | X2: Fruits secs, pruneaux | Y2: 2.53 | Z2: 2.77 | AA2: 8 | AB2: =VLOOKUP(W2,[2]Feuil1!$A$1:$G$65536,7,0) -> 1.94
A3: Produits de grande consommation – Grande distribution | S3: EXHAUSTIF | T3: MDD | U3: PPX | V3: MFAB | W3: FA00098 | X3: Traitements, engrais plant | Y3: 1.22 | Z3: 2.41 | AA3: 9.5 | AB3: =VLOOKUP(W3,[2]Feuil1!$A$1:$G$65536,7,0) -> 0.68
W4: FA00046 | X4: Digestif,liqueur,eau de vie | Y4: 1.18 | Z4: 2.53 | AA4: -0.8 | AB4: =VLOOKUP(W4,[2]Feuil1!$A$1:$G$65536,7,0) -> 0.69
R5: Fruits secs, pruneaux | S5: 2.53 | T5: 2.77 | U5: 8 | V5: 1.94 | W5: FA00043 | X5: Cidre, cider | Y5: 1.08 | Z5: 4.37 | AA5: 0.06 | AB5: =VLOOKUP(W5,[2]Feuil1!$A$1:$G$65536,7,0) -> -0.34
R6: Traitements, engrais plant | S6: 1.22 | T6: 2.41 | U6: 9.5 | V6: 0.68 | W6: FA00002 | X6: Paté,rillet,sciss,foie gras | Y6: 1.05 | Z6: 4.09 | AA6: 0.39 | AB6: =VLOOKUP(W6,[2]Feuil1!$A$1:$G$65536,7,0) -> -0.35
R7: Digestif,liqueur,eau de vie | S7: 1.18 | T7: 2.53 | U7: -0.8 | V7: 0.69 | W7: FA00044 | X7: Vin (Table et Pays) | Y7: 1.05 | Z7: 3.53 | AA7: 2.45 | AB7: =VLOOKUP(W7,[2]Feuil1!$A$1:$G$65536,7,0) -> -0.4
R8: Cidre, cider | S8: 1.08 | T8: 4.37 | U8: 0.06 | V8: -0.34 | W8: FA00048 | X8: Apéritifs alcoolisés | Y8: 0.96 | Z8: 2.1 | AA8: 1.51 | AB8: =VLOOKUP(W8,[2]Feuil1!$A$1:$G$65536,7,0) -> 0.57
R9: Paté,rillet,sciss,foie gras | S9: 1.05 | T9: 4.09 | U9: 0.39 | V9: -0.35 | W9: FA00045 | X9: Champagne, mousseux | Y9: 0.51 | Z9: 1.72 | AA9: 2.19 | AB9: =VLOOKUP(W9,[2]Feuil1!$A$1:$G$65536,7,0) -> -0.04
R10: Vin (Table et Pays) | S10: 1.05 | T10: 3.53 | U10: 2.45 | V10: -0.4 | W10: FA00085 | X10: Saurisserie | Y10: 0.49 | Z10: 1.64 | AA10: 0.26 | AB10: =VLOOKUP(W10,[2]Feuil1!$A$1:$G$65536,7,0) -> -0.46
R11: Apéritifs alcoolisés | S11: 0.96 | T11: 2.1 | U11: 1.51 | V11: 0.57 | W11: FA00081 | X11: FRUITS MER, POISSON NAT, PANES, GRENOUILLE ESCARGOT | Y11: 0.42 | Z11: 1.91 | AA11: 2.09 | AB11: =VLOOKUP(W11,[2]Feuil1!$A$1:$G$65536,7,0) -> -1.97
F12: EXHAUSTIF | H12: MARQUES FABRICANTS | J12: MDD | L12: PPX | R12: Champagne, mousseux | S12: 0.51 | T12: 1.72 | U12: 2.19 | V12: -0.04 | W12: FA00080 | X12: Plats cuisinés tt prêt surg | Y12: 0.28 | Z12: 1.33 | AA12: 1.37 | AB12: =VLOOKUP(W12,[2]Feuil1!$A$1:$G$65536,7,0) -> -1.62
B13: =+R5 -> Fruits secs, pruneaux | F13: =+S5 -> 2.53 | H13: 1.94 | J13: =+T5 -> 2.77 | L13: =+U5 -> 8 | R13: Saurisserie | S13: 0.49 | T13: 1.64 | U13: 0.26 | V13: -0.46 | W13: FA00005 | X13: Légumes secs et deshydratés | Y13: 0.09 | Z13: -1.02 | AA13: 8.15 | AB13: =VLOOKUP(W13,[2]Feuil1!$A$1:$G$65536,7,0) -> 0.4
B14: Traitements, engrais plant | F14: 1.22 | H14: 0.68 | J14: 2.41 | L14: 9.5 | R14: Fruits mer, poisson nat, panes, grenouille escargot | S14: 0.42 | T14: 1.91 | U14: 2.09 | V14: -1.97 | W14: FA00079 | X14: Entrée,pizza,fast food surg | Y14: 0.09 | Z14: 1.75 | AA14: -0.5 | AB14: =VLOOKUP(W14,[2]Feuil1!$A$1:$G$65536,7,0) -> -1.59
B15: Digestif,liqueur,eau de vie | F15: 1.18 | H15: 0.69 | J15: 2.53 | L15: -0.8 | W15: FA00078 | X15: Fromages | Y15: 0.05 | Z15: 1.07 | AA15: 1.97 | AB15: =VLOOKUP(W15,[2]Feuil1!$A$1:$G$65536,7,0) -> -0.57
B16: Cidre, cider | F16: 1.08 | H16: -0.34 | J16: 4.37 | L16: 0.06 | W16: FA00047 | X16: Whisky, bourbon | Y16: 0 | Z16: 1.89 | AA16: 0.36 | AB16: =VLOOKUP(W16,[2]Feuil1!$A$1:$G$65536,7,0) -> -0.2
B17: Paté,rillet,sciss,foie gras | F17: 1.05 | H17: -0.35 | J17: 4.09 | L17: 0.39 | W17: FA00083 | X17: Viande,volaill,charcut surg | Y17: 0 | Z17: 0.47 | AA17: 0.52 | AB17: =VLOOKUP(W17,[2]Feuil1!$A$1:$G$65536,7,0) -> -0.54
B18: Vin (Table et Pays) | F18: 1.05 | H18: -0.4 | J18: 3.53 | L18: 2.45 | W18: FA00039 | X18: Sirop,concent,poudre boiss | Y18: -0.04 | Z18: 5.17 | AA18: 0.08 | AB18: =VLOOKUP(W18,[2]Feuil1!$A$1:$G$65536,7,0) -> -2.97
B19: Apéritifs alcoolisés | F19: 0.96 | H19: 0.57 | J19: 2.1 | L19: 1.51 | W19: FA00049 | X19: Apéritifs sans alcool | Y19: -0.49 | Z19: 3.17 | AA19: -0.65 | AB19: =VLOOKUP(W19,[2]Feuil1!$A$1:$G$65536,7,0) -> -1.2
B20: Champagne, mousseux | F20: 0.51 | H20: -0.04 | J20: 1.72 | L20: 2.19 | W20: FA00075 | X20: Lait | Y20: -0.56 | Z20: 0.58 | AA20: 4.66 | AB20: =VLOOKUP(W20,[2]Feuil1!$A$1:$G$65536,7,0) -> -1.31
B21: Saurisserie | F21: 0.49 | H21: -0.46 | J21: 1.64 | L21: 0.26 | W21: FA00053 | X21: Maquillage | Y21: -0.63 | Z21: -1.2 | AA21: -1 | AB21: =VLOOKUP(W21,[2]Feuil1!$A$1:$G$65536,7,0) -> -0.57
B22: Fruits mer, poisson nat, panes, grenouille escargot | F22: 0.42 | H22: -1.97 | J22: 1.91 | L22: 2.09 | W22: FA00011 | X22: Vinaigre | Y22: -0.79 | Z22: -0.63 | AA22: -0.33 | AB22: =VLOOKUP(W22,[2]Feuil1!$A$1:$G$65536,7,0) -> -1.04
W23: FA00090 | X23: Bas et collants | Y23: -0.91 | Z23: -1.13 | AA23: -0.51 | AB23: =VLOOKUP(W23,[2]Feuil1!$A$1:$G$65536,7,0) -> -0.86
B24: Leaders : 7 000 produits détenus par + 40 % des magasins HM & SM en France. | W24: FA00073 | X24: Charcuterie libre service | Y24: -1.01 | Z24: 0.51 | AA24: -0.67 | AB24: =VLOOKUP(W24,[2]Feuil1!$A$1:$G$65536,7,0) -> -2.34
B25: Plus Grandes Marques = "Majeurs": les références des marques majeures par catégories de produits. | W25: FA00001 | X25: Plats cuisinés | Y25: -1.03 | Z25: 0.32 | AA25: 1.87 | AB25: =VLOOKUP(W25,[2]Feuil1!$A$1:$G$65536,7,0) -> -1.82
W26: FA00077 | X26: Oeufs | Y26: -1.08 | Z26: -3.24 | AA26: -0.04 | AB26: =VLOOKUP(W26,[2]Feuil1!$A$1:$G$65536,7,0) -> 0.26
W27: FA00094 | X27: Piles | Y27: -1.1 | Z27: -1.07 | AA27: 1.6 | AB27: =VLOOKUP(W27,[2]Feuil1!$A$1:$G$65536,7,0) -> -1.42
W28: FA00069 | X28: Insecticides | Y28: -1.11 | Z28: -0.04 | AA28: 0.2 | AB28: =VLOOKUP(W28,[2]Feuil1!$A$1:$G$65536,7,0) -> -1.34
W29: FA00010 | X29: Huile | Y29: -1.14 | Z29: -0.32 | AA29: -4.2 | AB29: =VLOOKUP(W29,[2]Feuil1!$A$1:$G$65536,7,0) -> -1.32
W30: FA00033 | X30: Fruits au sirop, au jus | Y30: -1.16 | Z30: -0.27 | AA30: 3.69 | AB30: =VLOOKUP(W30,[2]Feuil1!$A$1:$G$65536,7,0) -> -2.63
W31: FA00062 | X31: Papier hygiénique | Y31: -1.16 | Z31: -0.07 | AA31: 0.51 | AB31: =VLOOKUP(W31,[2]Feuil1!$A$1:$G$65536,7,0) -> -3.47
W32: FA00068 | X32: Désodorisants d'intérieur | Y32: -1.17 | Z32: 0.36 | AA32: -0.61 | AB32: =VLOOKUP(W32,[2]Feuil1!$A$1:$G$65536,7,0) -> -1.75
W33: FA00012 | X33: Sel, poivre, épices, herbes | Y33: -1.18 | Z33: 2.68 | AA33: 3.76 | AB33: =VLOOKUP(W33,[2]Feuil1!$A$1:$G$65536,7,0) -> -2.08
W34: FA00095 | X34: Ampoules électriques | Y34: -1.18 | Z34: -0.33 | AA34: 1.69 | AB34: =VLOOKUP(W34,[2]Feuil1!$A$1:$G$65536,7,0) -> -1.69
W35: FA00089 | X35: Vaisselle jetable | Y35: -1.29 | Z35: -0.52 | AA35: -3.03 | AB35: =VLOOKUP(W35,[2]Feuil1!$A$1:$G$65536,7,0) -> -2.91
W36: FA00014 | X36: Légumes vinaig, huile, saum | Y36: -1.32 | Z36: 0.72 | AA36: 7.07 | AB36: =VLOOKUP(W36,[2]Feuil1!$A$1:$G$65536,7,0) -> -2.54
W37: FA00096 | X37: LITIERES POUR ANIMAUX | Y37: -1.34 | Z37: -0.66 | AA37: 2.63 | AB37: =VLOOKUP(W37,[2]Feuil1!$A$1:$G$65536,7,0) -> -2.96
W38: FA00082 | X38: Légumes surgelés | Y38: -1.36 | Z38: -0.49 | AA38: 0.41 | AB38: =VLOOKUP(W38,[2]Feuil1!$A$1:$G$65536,7,0) -> -3.34
W39: FA00087 | X39: Traiteur libre service | Y39: -1.46 | Z39: -0.84 | AA39: -0.37 | AB39: =VLOOKUP(W39,[2]Feuil1!$A$1:$G$65536,7,0) -> -1.89
W40: FA00029 | X40: Chicorée,chic+caf,cafe solu | Y40: -1.47 | Z40: 0.52 | AA40: 1.2 | AB40: =VLOOKUP(W40,[2]Feuil1!$A$1:$G$65536,7,0) -> -2.25
W41: FA00027 | X41: Pate A tartiner | Y41: -1.52 | Z41: -0.1 | AA41: -0.07 | AB41: =VLOOKUP(W41,[2]Feuil1!$A$1:$G$65536,7,0) -> -2.33
W42: FA00003 | X42: Conserves de poissons | Y42: -1.54 | Z42: -0.6 | AA42: 0.89 | AB42: =VLOOKUP(W42,[2]Feuil1!$A$1:$G$65536,7,0) -> -2.13
W43: FA00321 | X43: Protections incontinence adultes | Y43: -1.54 | Z43: 1.87 | AA43: 0 | AB43: =VLOOKUP(W43,[2]Feuil1!$A$1:$G$65536,7,0) -> -4.95
W44: FA00076 | X44: Beurre,margarine,creme frai | Y44: -1.57 | Z44: 0.02 | AA44: 0.64 | AB44: =VLOOKUP(W44,[2]Feuil1!$A$1:$G$65536,7,0) -> -2.42
W45: FA00041 | X45: Jus, nectar fruit,legume | Y45: -1.64 | Z45: 0.9 | AA45: -0.05 | AB45: =VLOOKUP(W45,[2]Feuil1!$A$1:$G$65536,7,0) -> -4.96
W46: FA00057 | X46: Parapharmacie | Y46: -1.69 | Z46: -0.34 | AA46: -0.55 | AB46: =VLOOKUP(W46,[2]Feuil1!$A$1:$G$65536,7,0) -> -1.99
W47: FA00036 | X47: Confiserie de sucre | Y47: -1.7 | Z47: 1.28 | AA47: 0.39 | AB47: =VLOOKUP(W47,[2]Feuil1!$A$1:$G$65536,7,0) -> -2.37
W48: FA00009 | X48: Potages,bouill,aide culinai | Y48: -1.79 | Z48: 2.56 | AA48: 0.94 | AB48: =VLOOKUP(W48,[2]Feuil1!$A$1:$G$65536,7,0) -> -2.63
W49: FA00032 | X49: Miel, confiture, compote | Y49: -1.86 | Z49: 0.15 | AA49: 1.66 | AB49: =VLOOKUP(W49,[2]Feuil1!$A$1:$G$65536,7,0) -> -3.22
W50: FA00063 | X50: Essuie tout | Y50: -1.93 | Z50: 0.38 | AA50: -1 | AB50: =VLOOKUP(W50,[2]Feuil1!$A$1:$G$65536,7,0) -> -4.49
W51: FA00019 | X51: Aide patisserie, desserts | Y51: -1.97 | Z51: -0.63 | AA51: -0.77 | AB51: =VLOOKUP(W51,[2]Feuil1!$A$1:$G$65536,7,0) -> -2.22
W52: FA00084 | X52: Surgelés sucrés | Y52: -1.99 | Z52: 0.69 | AA52: 1.86 | AB52: =VLOOKUP(W52,[2]Feuil1!$A$1:$G$65536,7,0) -> -4.01
W53: FA00066 | X53: Eponges, tampons A récurer | Y53: -2 | Z53: -0.13 | AA53: -4.12 | AB53: =VLOOKUP(W53,[2]Feuil1!$A$1:$G$65536,7,0) -> -2.79
W54: FA00071 | X54: Lessives, savons de ménage | Y54: -2.01 | Z54: -0.13 | AA54: -4.77 | AB54: =VLOOKUP(W54,[2]Feuil1!$A$1:$G$65536,7,0) -> -2.56
W55: FA00013 | X55: Sauces, prép condimentaires | Y55: -2.06 | Z55: 0.3 | AA55: 1.06 | AB55: =VLOOKUP(W55,[2]Feuil1!$A$1:$G$65536,7,0) -> -3.06
W56: FA00020 | X56: Biscuits sucrés | Y56: -2.06 | Z56: 0.66 | AA56: 2.93 | AB56: =VLOOKUP(W56,[2]Feuil1!$A$1:$G$65536,7,0) -> -3.85
W57: FA00086 | X57: Pates fraIches | Y57: -2.07 | Z57: -0.24 | AA57: 1.43 | AB57: =VLOOKUP(W57,[2]Feuil1!$A$1:$G$65536,7,0) -> -3.25
W58: FA00021 | X58: Patisserie industrielle | Y58: -2.09 | Z58: 0.77 | AA58: 4.21 | AB58: =VLOOKUP(W58,[2]Feuil1!$A$1:$G$65536,7,0) -> -3.88
W59: FA00070 | X59: Cirage, entret,teintu cuir | Y59: -2.12 | Z59: 0.66 | AB59: =VLOOKUP(W59,[2]Feuil1!$A$1:$G$65536,7,0) -> -2.26
W60: FA00035 | X60: Confiserie de chocolat | Y60: -2.17 | Z60: 1.64 | AA60: -0.61 | AB60: =VLOOKUP(W60,[2]Feuil1!$A$1:$G$65536,7,0) -> -2.69
W61: FA00042 | X61: Bière, boisson base bière | Y61: -2.17 | Z61: 0.68 | AA61: 0.06 | AB61: =VLOOKUP(W61,[2]Feuil1!$A$1:$G$65536,7,0) -> -2.46
W62: FA00034 | X62: Chocolat en tablette | Y62: -2.19 | Z62: -0.46 | AA62: 0.8 | AB62: =VLOOKUP(W62,[2]Feuil1!$A$1:$G$65536,7,0) -> -2.93
W63: FA00040 | X63: Boisson rafraich ss alcool | Y63: -2.21 | Z63: 1.32 | AA63: 0.86 | AB63: =VLOOKUP(W63,[2]Feuil1!$A$1:$G$65536,7,0) -> -3.36
W64: FA00320 | X64: Changes complets, couches,culottes absorbantes bebes | Y64: -2.21 | Z64: -1.76 | AA64: -1.29 | AB64: =VLOOKUP(W64,[2]Feuil1!$A$1:$G$65536,7,0) -> -2.66
W65: FA00092 | X65: Supports Informatiques | Y65: -2.22 | Z65: 1.7 | AA65: -3.13 | AB65: =VLOOKUP(W65,[2]Feuil1!$A$1:$G$65536,7,0) -> -3.03
W66: FA00097 | X66: Huile moteur | Y66: -2.25 | Z66: -2.88 | AA66: -0.11 | AB66: =VLOOKUP(W66,[2]Feuil1!$A$1:$G$65536,7,0) -> -2.1
W67: FA00058 | X67: Hygiène fèminine | Y67: -2.29 | Z67: -0.98 | AA67: 0.65 | AB67: =VLOOKUP(W67,[2]Feuil1!$A$1:$G$65536,7,0) -> -2.98
W68: FA00074 | X68: Yaourt,dessert lac,froma bl | Y68: -2.33 | Z68: -0.16 | AA68: 0.86 | AB68: =VLOOKUP(W68,[2]Feuil1!$A$1:$G$65536,7,0) -> -3.83
W69: FA00004 | X69: Légumes en conserve | Y69: -2.36 | Z69: -0.71 | AA69: 2.93 | AB69: =VLOOKUP(W69,[2]Feuil1!$A$1:$G$65536,7,0) -> -4.38
W70: FA00067 | X70: Emballage ménag,filtre café | Y70: -2.44 | Z70: -1.42 | AA70: 0.69 | AB70: =VLOOKUP(W70,[2]Feuil1!$A$1:$G$65536,7,0) -> -3.86
W71: FA00050 | X71: Rasage, aprés rasage | Y71: -2.45 | Z71: -0.18 | AA71: -2.38 | AB71: =VLOOKUP(W71,[2]Feuil1!$A$1:$G$65536,7,0) -> -2.89
W72: FA00072 | X72: Assouplissant, entret linge | Y72: -2.45 | Z72: 0.12 | AA72: -2.63 | AB72: =VLOOKUP(W72,[2]Feuil1!$A$1:$G$65536,7,0) -> -3.35
W73: FA00022 | X73: Produits apéritifs, chips | Y73: -2.56 | Z73: -0.69 | AA73: 1.41 | AB73: =VLOOKUP(W73,[2]Feuil1!$A$1:$G$65536,7,0) -> -3.87
W74: FA00060 | X74: Coton | Y74: -2.6 | Z74: -1.34 | AA74: -5.06 | AB74: =VLOOKUP(W74,[2]Feuil1!$A$1:$G$65536,7,0) -> -4.31
W75: FA00054 | X75: Savon, bain, douche adu+bb | Y75: -2.72 | Z75: 0.18 | AA75: 5.98 | AB75: =VLOOKUP(W75,[2]Feuil1!$A$1:$G$65536,7,0) -> -3.58
W76: FA00065 | X76: Nettoyants ménager, débouch | Y76: -2.73 | Z76: -0.48 | AA76: -0.4 | AB76: =VLOOKUP(W76,[2]Feuil1!$A$1:$G$65536,7,0) -> -3.55
W77: FA00015 | X77: Aliments chiens et chats | Y77: -2.84 | Z77: 0.42 | AA77: 1.61 | AB77: =VLOOKUP(W77,[2]Feuil1!$A$1:$G$65536,7,0) -> -4.17
W78: FA00025 | X78: Poudres petits déjeuners | Y78: -2.86 | Z78: -0.49 | AA78: 0.75 | AB78: =VLOOKUP(W78,[2]Feuil1!$A$1:$G$65536,7,0) -> -3.53
W79: FA00028 | X79: Thés et infusions | Y79: -2.9 | Z79: 0.08 | AA79: -0.19 | AB79: =VLOOKUP(W79,[2]Feuil1!$A$1:$G$65536,7,0) -> -3.7
W80: FA00006 | X80: Riz | Y80: -3.21 | Z80: -1.72 | AA80: 0.36 | AB80: =VLOOKUP(W80,[2]Feuil1!$A$1:$G$65536,7,0) -> -4.21
W81: FA00008 | X81: Farines, farineux, semoules | Y81: -3.21 | Z81: -2.97 | AA81: -3.98 | AB81: =VLOOKUP(W81,[2]Feuil1!$A$1:$G$65536,7,0) -> -3.28
W82: FA00031 | X82: Sucres et édulcorants | Y82: -3.23 | Z82: -0.79 | AA82: -2.97 | AB82: =VLOOKUP(W82,[2]Feuil1!$A$1:$G$65536,7,0) -> -3.57
W83: FA00007 | X83: Pates alimentaires | Y83: -3.24 | Z83: -1.71 | AA83: -2.09 | AB83: =VLOOKUP(W83,[2]Feuil1!$A$1:$G$65536,7,0) -> -3.98
W84: FA00026 | X84: Céréales | Y84: -3.25 | Z84: -0.74 | AA84: -0.7 | AB84: =VLOOKUP(W84,[2]Feuil1!$A$1:$G$65536,7,0) -> -4.66
W85: FA00064 | X85: Prod vaisselle main,machine | Y85: -3.26 | Z85: 0.28 | AA85: 2.06 | AB85: =VLOOKUP(W85,[2]Feuil1!$A$1:$G$65536,7,0) -> -5.18
W86: FA00052 | X86: Soins corps, visage adu+bb | Y86: -3.42 | Z86: -2.66 | AA86: 1.51 | AB86: =VLOOKUP(W86,[2]Feuil1!$A$1:$G$65536,7,0) -> -3.55
W87: FA00023 | X87: Panification sèche | Y87: -3.53 | Z87: -0.49 | AA87: 0.08 | AB87: =VLOOKUP(W87,[2]Feuil1!$A$1:$G$65536,7,0) -> -5.2
W88: FA00017 | X88: Produits diététiques | Y88: -3.57 | Z88: -1.62 | AA88: 4.74 | AB88: =VLOOKUP(W88,[2]Feuil1!$A$1:$G$65536,7,0) -> -3.78
W89: FA00061 | X89: Mouchoirs papier, lingettes | Y89: -3.57 | Z89: -2.17 | AA89: -1.59 | AB89: =VLOOKUP(W89,[2]Feuil1!$A$1:$G$65536,7,0) -> -4.65
W90: FA00055 | X90: Hygiène dentaire | Y90: -3.66 | Z90: -1.37 | AA90: 0.33 | AB90: =VLOOKUP(W90,[2]Feuil1!$A$1:$G$65536,7,0) -> -4.09
W91: FA00030 | X91: Café torréfié | Y91: -3.73 | Z91: -1.91 | AA91: -0.85 | AB91: =VLOOKUP(W91,[2]Feuil1!$A$1:$G$65536,7,0) -> -4.34
W92: FA00037 | X92: Chewing gum | Y92: -3.88 | Z92: 5.56 | AA92: 0.02 | AB92: =VLOOKUP(W92,[2]Feuil1!$A$1:$G$65536,7,0) -> -4.03
W93: FA00091 | X93: GANTS DE MENAGE JETABLES | Y93: -3.88 | Z93: -1.01 | AA93: -14.31 | AB93: =VLOOKUP(W93,[2]Feuil1!$A$1:$G$65536,7,0) -> -5.55
W94: FA00051 | X94: Déodorant,parfum,edt adu+bb | Y94: -4.1 | Z94: -6.49 | AA94: -0.19 | AB94: =VLOOKUP(W94,[2]Feuil1!$A$1:$G$65536,7,0) -> -3.88
W95: FA00056 | X95: Produits capillaires | Y95: -4.11 | Z95: -0.48 | AA95: 1.09 | AB95: =VLOOKUP(W95,[2]Feuil1!$A$1:$G$65536,7,0) -> -4.67
W96: FA00024 | X96: Lait poudre,concentré adult | Y96: -4.31 | Z96: -1.47 | AA96: -5.45 | AB96: =VLOOKUP(W96,[2]Feuil1!$A$1:$G$65536,7,0) -> -4.82
W97: FA00093 | X97: Petit électroménager | Y97: -4.45 | Z97: -4.89 | AA97: -3.49 | AB97: =VLOOKUP(W97,[2]Feuil1!$A$1:$G$65536,7,0) -> -4.42
W98: FA00016 | X98: Aliments infantiles | Y98: -5.51 | Z98: -2.67 | AB98: =VLOOKUP(W98,[2]Feuil1!$A$1:$G$65536,7,0) -> -5.8
W99: FA00088 | X99: Panification industr fraIc | Y99: -5.57 | Z99: -2.86 | AA99: -2.03 | AB99: =VLOOKUP(W99,[2]Feuil1!$A$1:$G$65536,7,0) -> -7.4
W100: FA00038 | X100: Eaux | Y100: -6.22 | Z100: 0.98 | AA100: -0.69 | AB100: =VLOOKUP(W100,[2]Feuil1!$A$1:$G$65536,7,0) -> -8.09

Sheet Familles Moins
A1: Observatoire des prix et des marges | W1: grprd | X1: Fam/ray | Y1: Exhaustif | Z1: MDD | AA1: PPX | AB1: mfab
W2: FA00038 | X2: Eaux | Y2: -6.22 | Z2: 0.98 | AA2: -0.69 | AB2: =VLOOKUP(W2,[2]Feuil1!$A$1:$G$65536,7,0) -> -8.09
A3: Produits de grande consommation – Grande distribution | S3: EXHAUSTIF | T3: MDD | U3: PPX | V3: MFAB | W3: FA00088 | X3: Panification industr fraIc | Y3: -5.57 | Z3: -2.86 | AA3: -2.03 | AB3: =VLOOKUP(W3,[2]Feuil1!$A$1:$G$65536,7,0) -> -7.4
W4: FA00016 | X4: Aliments infantiles | Y4: -5.51 | Z4: -2.67 | AB4: =VLOOKUP(W4,[2]Feuil1!$A$1:$G$65536,7,0) -> -5.8
R5: Eaux | S5: -6.22 | T5: 0.98 | U5: -0.69 | V5: -8.09 | W5: FA00093 | X5: Petit électroménager | Y5: -4.45 | Z5: -4.89 | AA5: -3.49 | AB5: =VLOOKUP(W5,[2]Feuil1!$A$1:$G$65536,7,0) -> -4.42
R6: Panification industr fraIc | S6: -5.57 | T6: -2.86 | U6: -2.03 | V6: -7.4 | W6: FA00024 | X6: Lait poudre,concentré adult | Y6: -4.31 | Z6: -1.47 | AA6: -5.45 | AB6: =VLOOKUP(W6,[2]Feuil1!$A$1:$G$65536,7,0) -> -4.82
R7: Aliments infantiles | S7: -5.51 | T7: -2.67 | V7: -5.8 | W7: FA00056 | X7: Produits capillaires | Y7: -4.11 | Z7: -0.48 | AA7: 1.09 | AB7: =VLOOKUP(W7,[2]Feuil1!$A$1:$G$65536,7,0) -> -4.67
R8: Petit électroménager | S8: -4.45 | T8: -4.89 | U8: -3.49 | V8: -4.42 | W8: FA00051 | X8: Déodorant,parfum,edt adu+bb | Y8: -4.1 | Z8: -6.49 | AA8: -0.19 | AB8: =VLOOKUP(W8,[2]Feuil1!$A$1:$G$65536,7,0) -> -3.88
R9: Lait poudre,concentré adult | S9: -4.31 | T9: -1.47 | U9: -5.45 | V9: -4.82 | W9: FA00037 | X9: Chewing gum | Y9: -3.88 | Z9: 5.56 | AA9: 0.02 | AB9: =VLOOKUP(W9,[2]Feuil1!$A$1:$G$65536,7,0) -> -4.03
R10: Produits capillaires | S10: -4.11 | T10: -0.48 | U10: 1.09 | V10: -4.67 | W10: FA00091 | X10: GANTS DE MENAGE JETABLES | Y10: -3.88 | Z10: -1.01 | AA10: -14.31 | AB10: =VLOOKUP(W10,[2]Feuil1!$A$1:$G$65536,7,0) -> -5.55
R11: Déodorant,parfum,edt adu+bb | S11: -4.1 | T11: -6.49 | U11: -0.19 | V11: -3.88 | W11: FA00030 | X11: Café torréfié | Y11: -3.73 | Z11: -1.91 | AA11: -0.85 | AB11: =VLOOKUP(W11,[2]Feuil1!$A$1:$G$65536,7,0) -> -4.34
R12: Chewing gum | S12: -3.88 | T12: 5.56 | U12: 0.02 | V12: -4.03 | W12: FA00055 | X12: Hygiène dentaire | Y12: -3.66 | Z12: -1.37 | AA12: 0.33 | AB12: =VLOOKUP(W12,[2]Feuil1!$A$1:$G$65536,7,0) -> -4.09
R13: Gants de ménage jetables | S13: -3.88 | T13: -1.01 | U13: -14.31 | V13: -5.55 | W13: FA00017 | X13: Produits diététiques | Y13: -3.57 | Z13: -1.62 | AA13: 4.74 | AB13: =VLOOKUP(W13,[2]Feuil1!$A$1:$G$65536,7,0) -> -3.78
F14: EXHAUSTIF | H14: MARQUES FABRICANTS | J14: MDD | L14: PPX | R14: Café torréfié | S14: -3.73 | T14: -1.91 | U14: -0.85 | V14: -4.34 | W14: FA00061 | X14: Mouchoirs papier, lingettes | Y14: -3.57 | Z14: -2.17 | AA14: -1.59 | AB14: =VLOOKUP(W14,[2]Feuil1!$A$1:$G$65536,7,0) -> -4.65
B15: =+R5 -> Eaux | F15: =+S5 -> -6.22 | H15: -8.09 | J15: =+T5 -> 0.98 | L15: =+U5 -> -0.69 | W15: FA00023 | X15: Panification sèche | Y15: -3.53 | Z15: -0.49 | AA15: 0.08 | AB15: =VLOOKUP(W15,[2]Feuil1!$A$1:$G$65536,7,0) -> -5.2
B16: Panification industr fraIc | F16: -5.57 | H16: -7.4 | J16: -2.86 | L16: -2.03 | W16: FA00052 | X16: Soins corps, visage adu+bb | Y16: -3.42 | Z16: -2.66 | AA16: 1.51 | AB16: =VLOOKUP(W16,[2]Feuil1!$A$1:$G$65536,7,0) -> -3.55
B17: Aliments infantiles | F17: -5.51 | H17: -5.8 | J17: -2.67 | L17: 0 | W17: FA00064 | X17: Prod vaisselle main,machine | Y17: -3.26 | Z17: 0.28 | AA17: 2.06 | AB17: =VLOOKUP(W17,[2]Feuil1!$A$1:$G$65536,7,0) -> -5.18
B18: Petit électroménager | F18: -4.45 | H18: -4.42 | J18: -4.89 | L18: -3.49 | W18: FA00026 | X18: Céréales | Y18: -3.25 | Z18: -0.74 | AA18: -0.7 | AB18: =VLOOKUP(W18,[2]Feuil1!$A$1:$G$65536,7,0) -> -4.66
B19: Lait poudre,concentré adult | F19: -4.31 | H19: -4.82 | J19: -1.47 | L19: -5.45 | W19: FA00007 | X19: Pates alimentaires | Y19: -3.24 | Z19: -1.71 | AA19: -2.09 | AB19: =VLOOKUP(W19,[2]Feuil1!$A$1:$G$65536,7,0) -> -3.98
B20: Produits capillaires | F20: -4.11 | H20: -4.67 | J20: -0.48 | L20: 1.09 | W20: FA00031 | X20: Sucres et édulcorants | Y20: -3.23 | Z20: -0.79 | AA20: -2.97 | AB20: =VLOOKUP(W20,[2]Feuil1!$A$1:$G$65536,7,0) -> -3.57
B21: Déodorant,parfum,edt adu+bb | F21: -4.1 | H21: -3.88 | J21: -6.49 | L21: -0.19 | W21: FA00006 | X21: Riz | Y21: -3.21 | Z21: -1.72 | AA21: 0.36 | AB21: =VLOOKUP(W21,[2]Feuil1!$A$1:$G$65536,7,0) -> -4.21
B22: Chewing gum | F22: -3.88 | H22: -4.03 | J22: 5.56 | L22: 0.02 | W22: FA00008 | X22: Farines, farineux, semoules | Y22: -3.21 | Z22: -2.97 | AA22: -3.98 | AB22: =VLOOKUP(W22,[2]Feuil1!$A$1:$G$65536,7,0) -> -3.28
B23: Gants de ménage jetables | F23: -3.88 | H23: -5.55 | J23: -1.01 | L23: -14.31 | W23: FA00028 | X23: Thés et infusions | Y23: -2.9 | Z23: 0.08 | AA23: -0.19 | AB23: =VLOOKUP(W23,[2]Feuil1!$A$1:$G$65536,7,0) -> -3.7
B24: Café torréfié | F24: -3.73 | H24: -4.34 | J24: -1.91 | L24: -0.85 | W24: FA00025 | X24: Poudres petits déjeuners | Y24: -2.86 | Z24: -0.49 | AA24: 0.75 | AB24: =VLOOKUP(W24,[2]Feuil1!$A$1:$G$65536,7,0) -> -3.53
W25: FA00015 | X25: Aliments chiens et chats | Y25: -2.84 | Z25: 0.42 | AA25: 1.61 | AB25: =VLOOKUP(W25,[2]Feuil1!$A$1:$G$65536,7,0) -> -4.17
B26: Leaders : 7 000 produits détenus par + 40 % des magasins en France. | W26: FA00065 | X26: Nettoyants ménager, débouch | Y26: -2.73 | Z26: -0.48 | AA26: -0.4 | AB26: =VLOOKUP(W26,[2]Feuil1!$A$1:$G$65536,7,0) -> -3.55
B27: Plus Grandes Marques = "Majeurs": les références des marques majeures par catégories de produits. | W27: FA00054 | X27: Savon, bain, douche adu+bb | Y27: -2.72 | Z27: 0.18 | AA27: 5.98 | AB27: =VLOOKUP(W27,[2]Feuil1!$A$1:$G$65536,7,0) -> -3.58
W28: FA00060 | X28: Coton | Y28: -2.6 | Z28: -1.34 | AA28: -5.06 | AB28: =VLOOKUP(W28,[2]Feuil1!$A$1:$G$65536,7,0) -> -4.31
W29: FA00022 | X29: Produits apéritifs, chips | Y29: -2.56 | Z29: -0.69 | AA29: 1.41 | AB29: =VLOOKUP(W29,[2]Feuil1!$A$1:$G$65536,7,0) -> -3.87
W30: FA00050 | X30: Rasage, aprés rasage | Y30: -2.45 | Z30: -0.18 | AA30: -2.38 | AB30: =VLOOKUP(W30,[2]Feuil1!$A$1:$G$65536,7,0) -> -2.89
W31: FA00072 | X31: Assouplissant, entret linge | Y31: -2.45 | Z31: 0.12 | AA31: -2.63 | AB31: =VLOOKUP(W31,[2]Feuil1!$A$1:$G$65536,7,0) -> -3.35
W32: FA00067 | X32: Emballage ménag,filtre café | Y32: -2.44 | Z32: -1.42 | AA32: 0.69 | AB32: =VLOOKUP(W32,[2]Feuil1!$A$1:$G$65536,7,0) -> -3.86
W33: FA00004 | X33: Légumes en conserve | Y33: -2.36 | Z33: -0.71 | AA33: 2.93 | AB33: =VLOOKUP(W33,[2]Feuil1!$A$1:$G$65536,7,0) -> -4.38
W34: FA00074 | X34: Yaourt,dessert lac,froma bl | Y34: -2.33 | Z34: -0.16 | AA34: 0.86 | AB34: =VLOOKUP(W34,[2]Feuil1!$A$1:$G$65536,7,0) -> -3.83
W35: FA00058 | X35: Hygiène fèminine | Y35: -2.29 | Z35: -0.98 | AA35: 0.65 | AB35: =VLOOKUP(W35,[2]Feuil1!$A$1:$G$65536,7,0) -> -2.98
W36: FA00097 | X36: Huile moteur | Y36: -2.25 | Z36: -2.88 | AA36: -0.11 | AB36: =VLOOKUP(W36,[2]Feuil1!$A$1:$G$65536,7,0) -> -2.1
W37: FA00092 | X37: Supports Informatiques | Y37: -2.22 | Z37: 1.7 | AA37: -3.13 | AB37: =VLOOKUP(W37,[2]Feuil1!$A$1:$G$65536,7,0) -> -3.03
W38: FA00040 | X38: Boisson rafraich ss alcool | Y38: -2.21 | Z38: 1.32 | AA38: 0.86 | AB38: =VLOOKUP(W38,[2]Feuil1!$A$1:$G$65536,7,0) -> -3.36
W39: FA00320 | X39: Changes complets, couches,culottes absorbantes bebes | Y39: -2.21 | Z39: -1.76 | AA39: -1.29 | AB39: =VLOOKUP(W39,[2]Feuil1!$A$1:$G$65536,7,0) -> -2.66
W40: FA00034 | X40: Chocolat en tablette | Y40: -2.19 | Z40: -0.46 | AA40: 0.8 | AB40: =VLOOKUP(W40,[2]Feuil1!$A$1:$G$65536,7,0) -> -2.93
W41: FA00035 | X41: Confiserie de chocolat | Y41: -2.17 | Z41: 1.64 | AA41: -0.61 | AB41: =VLOOKUP(W41,[2]Feuil1!$A$1:$G$65536,7,0) -> -2.69
W42: FA00042 | X42: Bière, boisson base bière | Y42: -2.17 | Z42: 0.68 | AA42: 0.06 | AB42: =VLOOKUP(W42,[2]Feuil1!$A$1:$G$65536,7,0) -> -2.46
W43: FA00070 | X43: Cirage, entret,teintu cuir | Y43: -2.12 | Z43: 0.66 | AB43: =VLOOKUP(W43,[2]Feuil1!$A$1:$G$65536,7,0) -> -2.26
W44: FA00021 | X44: Patisserie industrielle | Y44: -2.09 | Z44: 0.77 | AA44: 4.21 | AB44: =VLOOKUP(W44,[2]Feuil1!$A$1:$G$65536,7,0) -> -3.88
W45: FA00086 | X45: Pates fraIches | Y45: -2.07 | Z45: -0.24 | AA45: 1.43 | AB45: =VLOOKUP(W45,[2]Feuil1!$A$1:$G$65536,7,0) -> -3.25
W46: FA00013 | X46: Sauces, prép condimentaires | Y46: -2.06 | Z46: 0.3 | AA46: 1.06 | AB46: =VLOOKUP(W46,[2]Feuil1!$A$1:$G$65536,7,0) -> -3.06
W47: FA00020 | X47: Biscuits sucrés | Y47: -2.06 | Z47: 0.66 | AA47: 2.93 | AB47: =VLOOKUP(W47,[2]Feuil1!$A$1:$G$65536,7,0) -> -3.85
W48: FA00071 | X48: Lessives, savons de ménage | Y48: -2.01 | Z48: -0.13 | AA48: -4.77 | AB48: =VLOOKUP(W48,[2]Feuil1!$A$1:$G$65536,7,0) -> -2.56
W49: FA00066 | X49: Eponges, tampons A récurer | Y49: -2 | Z49: -0.13 | AA49: -4.12 | AB49: =VLOOKUP(W49,[2]Feuil1!$A$1:$G$65536,7,0) -> -2.79
W50: FA00084 | X50: Surgelés sucrés | Y50: -1.99 | Z50: 0.69 | AA50: 1.86 | AB50: =VLOOKUP(W50,[2]Feuil1!$A$1:$G$65536,7,0) -> -4.01
W51: FA00019 | X51: Aide patisserie, desserts | Y51: -1.97 | Z51: -0.63 | AA51: -0.77 | AB51: =VLOOKUP(W51,[2]Feuil1!$A$1:$G$65536,7,0) -> -2.22
W52: FA00063 | X52: Essuie tout | Y52: -1.93 | Z52: 0.38 | AA52: -1 | AB52: =VLOOKUP(W52,[2]Feuil1!$A$1:$G$65536,7,0) -> -4.49
W53: FA00032 | X53: Miel, confiture, compote | Y53: -1.86 | Z53: 0.15 | AA53: 1.66 | AB53: =VLOOKUP(W53,[2]Feuil1!$A$1:$G$65536,7,0) -> -3.22
W54: FA00009 | X54: Potages,bouill,aide culinai | Y54: -1.79 | Z54: 2.56 | AA54: 0.94 | AB54: =VLOOKUP(W54,[2]Feuil1!$A$1:$G$65536,7,0) -> -2.63
W55: FA00036 | X55: Confiserie de sucre | Y55: -1.7 | Z55: 1.28 | AA55: 0.39 | AB55: =VLOOKUP(W55,[2]Feuil1!$A$1:$G$65536,7,0) -> -2.37
W56: FA00057 | X56: Parapharmacie | Y56: -1.69 | Z56: -0.34 | AA56: -0.55 | AB56: =VLOOKUP(W56,[2]Feuil1!$A$1:$G$65536,7,0) -> -1.99
W57: FA00041 | X57: Jus, nectar fruit,legume | Y57: -1.64 | Z57: 0.9 | AA57: -0.05 | AB57: =VLOOKUP(W57,[2]Feuil1!$A$1:$G$65536,7,0) -> -4.96
W58: FA00076 | X58: Beurre,margarine,creme frai | Y58: -1.57 | Z58: 0.02 | AA58: 0.64 | AB58: =VLOOKUP(W58,[2]Feuil1!$A$1:$G$65536,7,0) -> -2.42
W59: FA00003 | X59: Conserves de poissons | Y59: -1.54 | Z59: -0.6 | AA59: 0.89 | AB59: =VLOOKUP(W59,[2]Feuil1!$A$1:$G$65536,7,0) -> -2.13
W60: FA00321 | X60: Protections incontinence adultes | Y60: -1.54 | Z60: 1.87 | AA60: 0 | AB60: =VLOOKUP(W60,[2]Feuil1!$A$1:$G$65536,7,0) -> -4.95
W61: FA00027 | X61: Pate A tartiner | Y61: -1.52 | Z61: -0.1 | AA61: -0.07 | AB61: =VLOOKUP(W61,[2]Feuil1!$A$1:$G$65536,7,0) -> -2.33
W62: FA00029 | X62: Chicorée,chic+caf,cafe solu | Y62: -1.47 | Z62: 0.52 | AA62: 1.2 | AB62: =VLOOKUP(W62,[2]Feuil1!$A$1:$G$65536,7,0) -> -2.25
W63: FA00087 | X63: Traiteur libre service | Y63: -1.46 | Z63: -0.84 | AA63: -0.37 | AB63: =VLOOKUP(W63,[2]Feuil1!$A$1:$G$65536,7,0) -> -1.89
W64: FA00082 | X64: Légumes surgelés | Y64: -1.36 | Z64: -0.49 | AA64: 0.41 | AB64: =VLOOKUP(W64,[2]Feuil1!$A$1:$G$65536,7,0) -> -3.34
W65: FA00096 | X65: LITIERES POUR ANIMAUX | Y65: -1.34 | Z65: -0.66 | AA65: 2.63 | AB65: =VLOOKUP(W65,[2]Feuil1!$A$1:$G$65536,7,0) -> -2.96
W66: FA00014 | X66: Légumes vinaig, huile, saum | Y66: -1.32 | Z66: 0.72 | AA66: 7.07 | AB66: =VLOOKUP(W66,[2]Feuil1!$A$1:$G$65536,7,0) -> -2.54
W67: FA00089 | X67: Vaisselle jetable | Y67: -1.29 | Z67: -0.52 | AA67: -3.03 | AB67: =VLOOKUP(W67,[2]Feuil1!$A$1:$G$65536,7,0) -> -2.91
W68: FA00012 | X68: Sel, poivre, épices, herbes | Y68: -1.18 | Z68: 2.68 | AA68: 3.76 | AB68: =VLOOKUP(W68,[2]Feuil1!$A$1:$G$65536,7,0) -> -2.08
W69: FA00095 | X69: Ampoules électriques | Y69: -1.18 | Z69: -0.33 | AA69: 1.69 | AB69: =VLOOKUP(W69,[2]Feuil1!$A$1:$G$65536,7,0) -> -1.69
W70: FA00068 | X70: Désodorisants d'intérieur | Y70: -1.17 | Z70: 0.36 | AA70: -0.61 | AB70: =VLOOKUP(W70,[2]Feuil1!$A$1:$G$65536,7,0) -> -1.75
W71: FA00033 | X71: Fruits au sirop, au jus | Y71: -1.16 | Z71: -0.27 | AA71: 3.69 | AB71: =VLOOKUP(W71,[2]Feuil1!$A$1:$G$65536,7,0) -> -2.63
W72: FA00062 | X72: Papier hygiénique | Y72: -1.16 | Z72: -0.07 | AA72: 0.51 | AB72: =VLOOKUP(W72,[2]Feuil1!$A$1:$G$65536,7,0) -> -3.47
W73: FA00010 | X73: Huile | Y73: -1.14 | Z73: -0.32 | AA73: -4.2 | AB73: =VLOOKUP(W73,[2]Feuil1!$A$1:$G$65536,7,0) -> -1.32
W74: FA00069 | X74: Insecticides | Y74: -1.11 | Z74: -0.04 | AA74: 0.2 | AB74: =VLOOKUP(W74,[2]Feuil1!$A$1:$G$65536,7,0) -> -1.34
W75: FA00094 | X75: Piles | Y75: -1.1 | Z75: -1.07 | AA75: 1.6 | AB75: =VLOOKUP(W75,[2]Feuil1!$A$1:$G$65536,7,0) -> -1.42
W76: FA00077 | X76: Oeufs | Y76: -1.08 | Z76: -3.24 | AA76: -0.04 | AB76: =VLOOKUP(W76,[2]Feuil1!$A$1:$G$65536,7,0) -> 0.26
W77: FA00001 | X77: Plats cuisinés | Y77: -1.03 | Z77: 0.32 | AA77: 1.87 | AB77: =VLOOKUP(W77,[2]Feuil1!$A$1:$G$65536,7,0) -> -1.82
W78: FA00073 | X78: Charcuterie libre service | Y78: -1.01 | Z78: 0.51 | AA78: -0.67 | AB78: =VLOOKUP(W78,[2]Feuil1!$A$1:$G$65536,7,0) -> -2.34
W79: FA00090 | X79: Bas et collants | Y79: -0.91 | Z79: -1.13 | AA79: -0.51 | AB79: =VLOOKUP(W79,[2]Feuil1!$A$1:$G$65536,7,0) -> -0.86
W80: FA00011 | X80: Vinaigre | Y80: -0.79 | Z80: -0.63 | AA80: -0.33 | AB80: =VLOOKUP(W80,[2]Feuil1!$A$1:$G$65536,7,0) -> -1.04
W81: FA00053 | X81: Maquillage | Y81: -0.63 | Z81: -1.2 | AA81: -1 | AB81: =VLOOKUP(W81,[2]Feuil1!$A$1:$G$65536,7,0) -> -0.57
W82: FA00075 | X82: Lait | Y82: -0.56 | Z82: 0.58 | AA82: 4.66 | AB82: =VLOOKUP(W82,[2]Feuil1!$A$1:$G$65536,7,0) -> -1.31
W83: FA00049 | X83: Apéritifs sans alcool | Y83: -0.49 | Z83: 3.17 | AA83: -0.65 | AB83: =VLOOKUP(W83,[2]Feuil1!$A$1:$G$65536,7,0) -> -1.2
W84: FA00039 | X84: Sirop,concent,poudre boiss | Y84: -0.04 | Z84: 5.17 | AA84: 0.08 | AB84: =VLOOKUP(W84,[2]Feuil1!$A$1:$G$65536,7,0) -> -2.97
W85: FA00047 | X85: Whisky, bourbon | Y85: 0 | Z85: 1.89 | AA85: 0.36 | AB85: =VLOOKUP(W85,[2]Feuil1!$A$1:$G$65536,7,0) -> -0.2
W86: FA00083 | X86: Viande,volaill,charcut surg | Y86: 0 | Z86: 0.47 | AA86: 0.52 | AB86: =VLOOKUP(W86,[2]Feuil1!$A$1:$G$65536,7,0) -> -0.54
W87: FA00078 | X87: Fromages | Y87: 0.05 | Z87: 1.07 | AA87: 1.97 | AB87: =VLOOKUP(W87,[2]Feuil1!$A$1:$G$65536,7,0) -> -0.57
W88: FA00005 | X88: Légumes secs et deshydratés | Y88: 0.09 | Z88: -1.02 | AA88: 8.15 | AB88: =VLOOKUP(W88,[2]Feuil1!$A$1:$G$65536,7,0) -> 0.4
W89: FA00079 | X89: Entrée,pizza,fast food surg | Y89: 0.09 | Z89: 1.75 | AA89: -0.5 | AB89: =VLOOKUP(W89,[2]Feuil1!$A$1:$G$65536,7,0) -> -1.59
W90: FA00080 | X90: Plats cuisinés tt prêt surg | Y90: 0.28 | Z90: 1.33 | AA90: 1.37 | AB90: =VLOOKUP(W90,[2]Feuil1!$A$1:$G$65536,7,0) -> -1.62
W91: FA00081 | X91: FRUITS MER, POISSON NAT, PANES, GRENOUILLE ESCARGOT | Y91: 0.42 | Z91: 1.91 | AA91: 2.09 | AB91: =VLOOKUP(W91,[2]Feuil1!$A$1:$G$65536,7,0) -> -1.97
W92: FA00085 | X92: Saurisserie | Y92: 0.49 | Z92: 1.64 | AA92: 0.26 | AB92: =VLOOKUP(W92,[2]Feuil1!$A$1:$G$65536,7,0) -> -0.46
W93: FA00045 | X93: Champagne, mousseux | Y93: 0.51 | Z93: 1.72 | AA93: 2.19 | AB93: =VLOOKUP(W93,[2]Feuil1!$A$1:$G$65536,7,0) -> -0.04
W94: FA00048 | X94: Apéritifs alcoolisés | Y94: 0.96 | Z94: 2.1 | AA94: 1.51 | AB94: =VLOOKUP(W94,[2]Feuil1!$A$1:$G$65536,7,0) -> 0.57
W95: FA00002 | X95: Paté,rillet,sciss,foie gras | Y95: 1.05 | Z95: 4.09 | AA95: 0.39 | AB95: =VLOOKUP(W95,[2]Feuil1!$A$1:$G$65536,7,0) -> -0.35
W96: FA00044 | X96: Vin (Table et Pays) | Y96: 1.05 | Z96: 3.53 | AA96: 2.45 | AB96: =VLOOKUP(W96,[2]Feuil1!$A$1:$G$65536,7,0) -> -0.4
W97: FA00043 | X97: Cidre, cider | Y97: 1.08 | Z97: 4.37 | AA97: 0.06 | AB97: =VLOOKUP(W97,[2]Feuil1!$A$1:$G$65536,7,0) -> -0.34
W98: FA00046 | X98: Digestif,liqueur,eau de vie | Y98: 1.18 | Z98: 2.53 | AA98: -0.8 | AB98: =VLOOKUP(W98,[2]Feuil1!$A$1:$G$65536,7,0) -> 0.69
W99: FA00098 | X99: Traitements, engrais plant | Y99: 1.22 | Z99: 2.41 | AA99: 9.5 | AB99: =VLOOKUP(W99,[2]Feuil1!$A$1:$G$65536,7,0) -> 0.68
W100: FA00018 | X100: Fruits secs, pruneaux | Y100: 2.53 | Z100: 2.77 | AA100: 8 | AB100: =VLOOKUP(W100,[2]Feuil1!$A$1:$G$65536,7,0) -> 1.94

Sheet Familles HD
A1: Observatoire des prix et des marges | AA1: grprd | AB1: Fam/ray | AC1: Exhaustif | AD1: MP Hard-Discount
AA2: FA00061 | AB2: Mouchoirs papier, lingettes | AC2: -16.36 | AD2: -17.0438206
A3: Produits de grande consommation – Grande distribution | W3: EXHAUSTIF | X3: Marques Propres | AA3: FA00051 | AB3: Déodorant,parfum,edt adu+bb | AC3: -13.89 | AD3: -23.0348581
V4: Cidre, cider | W4: 2.89 | X4: 13.48333333 | AA4: FA00016 | AB4: Aliments infantiles | AC4: -12.37 | AD4: -11.27217857
V5: Vin (Table et Pays) | W5: 1.17 | X5: -0.588630137 | AA5: FA00060 | AB5: Coton | AC5: -12.33 | AD5: -14.16574713
V6: Sirop,concent,poudre boiss | W6: 0.36 | X6: 1.164977974 | AA6: FA00096 | AB6: LITIERES POUR ANIMAUX | AC6: -11.51 | AD6: -11.92763975
V7: Huile moteur | W7: -0.08 | X7: -0.08 | AA7: FA00077 | AB7: Oeufs | AC7: -11.43 | AD7: -12.08856502
V8: Fruits au sirop, au jus | W8: -0.38 | X8: -0.4479710145 | AA8: FA00056 | AB8: Produits capillaires | AC8: -10.54 | AD8: -12.03817814
V9: Désodorisants d'intérieur | W9: -1.19 | X9: -2.725902256 | AA9: FA00052 | AB9: Soins corps, visage adu+bb | AC9: -10.34 | AD9: -20.33061538
V10: Maquillage | W10: -1.48 | X10: -20.82 | AA10: FA00062 | AB10: Papier hygiénique | AC10: -9.99 | AD10: -10.74606061
F11: EXHAUSTIF | H11: Marques Propres | O11: EXHAUSTIF | Q11: Marques Propres | V11: Légumes vinaig, huile, saum | W11: -1.55 | X11: -0.6984585492 | AA11: FA00015 | AB11: Aliments chiens et chats | AC11: -9.17 | AD11: -8.886522883
B12: =+V4 -> Cidre, cider | F12: =+W4 -> 2.89 | H12: =+X4 -> 13.48333333 | K12: =+V20 -> Mouchoirs papier, lingettes | O12: =+W20 -> -16.36 | Q12: =+X20 -> -17.0438206 | V12: Panification sèche | W12: -1.6 | X12: -1.386458797 | AA12: FA00320 | AB12: Changes complets, couches,culottes absorbantes bebes | AC12: -9.04 | AD12: -9.24125
B13: Vin (Table et Pays) | F13: 1.17 | H13: -0.588630137 | K13: Déodorant,parfum,edt adu+bb | O13: -13.89 | Q13: -23.0348581 | V13: FRUITS MER, POISSON NAT, PANES, GRENOUILLE ESCARGOT | W13: -1.61 | X13: -2.70394402 | AA13: FA00066 | AB13: Eponges, tampons A récurer | AC13: -8.85 | AD13: -7.483249211
B14: Sirop,concent,poudre boiss | F14: 0.36 | H14: 1.164977974 | K14: Aliments infantiles | O14: -12.37 | Q14: -11.27217857 | AA14: FA00070 | AB14: Cirage, entret,teintu cuir | AC14: -8.76 | AD14: -10.68
B15: Huile moteur | F15: -0.08 | H15: -0.08 | K15: Coton | O15: -12.33 | Q15: -14.16574713 | AA15: FA00024 | AB15: Lait poudre,concentré adult | AC15: -8.54 | AD15: -10.73635359
B16: Fruits au sirop, au jus | F16: -0.38 | H16: -0.4479710145 | K16: LITIERES POUR ANIMAUX | O16: -11.51 | Q16: -11.92763975 | AA16: FA00063 | AB16: Essuie tout | AC16: -8.53 | AD16: -8.793056995
B17: Désodorisants d'intérieur | F17: -1.19 | H17: -2.725902256 | K17: Oeufs | O17: -11.43 | Q17: -12.08856502 | AA17: FA00088 | AB17: Panification industr fraIc | AC17: -8.25 | AD17: -8.015185185
B18: Maquillage | F18: -1.48 | H18: -20.82 | K18: Produits capillaires | O18: -10.54 | Q18: -12.03817814 | AA18: FA00042 | AB18: Bière, boisson base bière | AC18: -8.19 | AD18: -12.89574257
B19: Légumes vinaig, huile, saum | F19: -1.55 | H19: -0.6984585492 | K19: Soins corps, visage adu+bb | O19: -10.34 | Q19: -20.33061538 | W19: EXHAUSTIF | X19: Marques Propres | AA19: FA00030 | AB19: Café torréfié | AC19: -8.15 | AD19: -9.467258193
B20: Panification sèche | F20: -1.6 | H20: -1.386458797 | K20: Papier hygiénique | O20: -9.99 | Q20: -10.74606061 | V20: Mouchoirs papier, lingettes | W20: -16.36 | X20: -17.0438206 | AA20: FA00007 | AB20: Pates alimentaires | AC20: -7.97 | AD20: -7.520761905
B21: FRUITS MER, POISSON NAT, PANES, GRENOUILLE ESCARGOT | F21: -1.61 | H21: -2.70394402 | K21: Aliments chiens et chats | O21: -9.17 | Q21: -8.886522883 | V21: Déodorant,parfum,edt adu+bb | W21: -13.89 | X21: -23.0348581 | AA21: FA00038 | AB21: Eaux | AC21: -7.89 | AD21: -5.962660407
V22: Aliments infantiles | W22: -12.37 | X22: -11.27217857 | AA22: FA00017 | AB22: Produits diététiques | AC22: -7.73 | AD22: -10.78
B23: Marques Propres : marques MdD "Premium", "Cœur de Gamme" et "Premiers Prix" | K23: Marques Propres : marques MdD "Premium", "Cœur de Gamme" et "Premiers Prix" | V23: Coton | W23: -12.33 | X23: -14.16574713 | AA23: FA00072 | AB23: Assouplissant, entret linge | AC23: -7.59 | AD23: -7.95015949
V24: LITIERES POUR ANIMAUX | W24: -11.51 | X24: -11.92763975 | AA24: FA00041 | AB24: Jus, nectar fruit,legume | AC24: -7.54 | AD24: -7.62779469
V25: Oeufs | W25: -11.43 | X25: -12.08856502 | AA25: FA00055 | AB25: Hygiène dentaire | AC25: -7.44 | AD25: -7.622945736
V26: Produits capillaires | W26: -10.54 | X26: -12.03817814 | AA26: FA00028 | AB26: Thés et infusions | AC26: -7.19 | AD26: -5.066423529
V27: Soins corps, visage adu+bb | W27: -10.34 | X27: -20.33061538 | AA27: FA00058 | AB27: Hygiène fèminine | AC27: -6.89 | AD27: -6.745888889
V28: Papier hygiénique | W28: -9.99 | X28: -10.74606061 | AA28: FA00026 | AB28: Céréales | AC28: -6.72 | AD28: -6.747767857
V29: Aliments chiens et chats | W29: -9.17 | X29: -8.886522883 | AA29: FA00035 | AB29: Confiserie de chocolat | AC29: -6.72 | AD29: -8.93
AA30: FA00004 | AB30: Légumes en conserve | AC30: -6.47 | AD30: -7.179256595
AA31: FA00050 | AB31: Rasage, aprés rasage | AC31: -6.43 | AD31: -4.651879896
AA32: FA00047 | AB32: Whisky, bourbon | AC32: -6.3 | AD32: -3.89351145
AA33: FA00054 | AB33: Savon, bain, douche adu+bb | AC33: -6.03 | AD33: -4.652578475
AA34: FA00029 | AB34: Chicorée,chic+caf,cafe solu | AC34: -6.02 | AD34: -6.438965517
AA35: FA00065 | AB35: Nettoyants ménager, débouch | AC35: -5.8 | AD35: -4.778713528
AA36: FA00064 | AB36: Prod vaisselle main,machine | AC36: -5.75 | AD36: -5.783274021
AA37: FA00067 | AB37: Emballage ménag,filtre café | AC37: -5.75 | AD37: -5.596319082
AA38: FA00027 | AB38: Pate A tartiner | AC38: -5.74 | AD38: -5.347769784
AA39: FA00080 | AB39: Plats cuisinés tt prêt surg | AC39: -5.69 | AD39: -4.822254227
AA40: FA00078 | AB40: Fromages | AC40: -5.38 | AD40: -6.348723994
AA41: FA00013 | AB41: Sauces, prép condimentaires | AC41: -5.37 | AD41: -5.539242424
AA42: FA00032 | AB42: Miel, confiture, compote | AC42: -5.31 | AD42: -5.022902584
AA43: FA00022 | AB43: Produits apéritifs, chips | AC43: -5.28 | AD43: -5.840742006
AA44: FA00087 | AB44: Traiteur libre service | AC44: -5.18 | AD44: -5.555851319
AA45: FA00003 | AB45: Conserves de poissons | AC45: -5.14 | AD45: -5.535699052
AA46: FA00036 | AB46: Confiserie de sucre | AC46: -5.05 | AD46: -6.979370134
AA47: FA00037 | AB47: Chewing gum | AC47: -5.03 | AD47: -1.51
AA48: FA00082 | AB48: Légumes surgelés | AC48: -5.01 | AD48: -5.051113626
AA49: FA00073 | AB49: Charcuterie libre service | AC49: -4.86 | AD49: -5.319553086
AA50: FA00075 | AB50: Lait | AC50: -4.74 | AD50: -5.09852349
AA51: FA00009 | AB51: Potages,bouill,aide culinai | AC51: -4.66 | AD51: -3.200963855
AA52: FA00018 | AB52: Fruits secs, pruneaux | AC52: -4.58 | AD52: -6.453458111
AA53: FA00074 | AB53: Yaourt,dessert lac,froma bl | AC53: -4.55 | AD53: -4.812945985
AA54: FA00020 | AB54: Biscuits sucrés | AC54: -4.51 | AD54: -4.147414434
AA55: FA00006 | AB55: Riz | AC55: -4.27 | AD55: -5.207846154
AA56: FA00010 | AB56: Huile | AC56: -4.23 | AD56: -4.860314371
AA57: FA00076 | AB57: Beurre,margarine,creme frai | AC57: -4.05 | AD57: -4.578233658
AA58: FA00021 | AB58: Patisserie industrielle | AC58: -4.01 | AD58: -4.043554356
AA59: FA00079 | AB59: Entrée,pizza,fast food surg | AC59: -3.85 | AD59: -4.007896657
AA60: FA00040 | AB60: Boisson rafraich ss alcool | AC60: -3.83 | AD60: -5.503323202
AA61: FA00008 | AB61: Farines, farineux, semoules | AC61: -3.81 | AD61: -3.191578947
AA62: FA00019 | AB62: Aide patisserie, desserts | AC62: -3.75 | AD62: -4.256864989
AA63: FA00048 | AB63: Apéritifs alcoolisés | AC63: -3.66 | AD63: -4.462223816
AA64: FA00005 | AB64: Légumes secs et deshydratés | AC64: -3.58 | AD64: -5.06
AA65: FA00069 | AB65: Insecticides | AC65: -3.43 | AD65: -6.367906977
AA66: FA00084 | AB66: Surgelés sucrés | AC66: -3.43 | AD66: -2.971239332
AA67: FA00091 | AB67: GANTS DE MENAGE JETABLES | AC67: -3.32 | AD67: -3.74
AA68: FA00034 | AB68: Chocolat en tablette | AC68: -3.26 | AD68: -4.73600538
AA69: FA00071 | AB69: Lessives, savons de ménage | AC69: -3.25 | AD69: -2.997512626
AA70: FA00031 | AB70: Sucres et édulcorants | AC70: -3.12 | AD70: -3.101373737
AA71: FA00045 | AB71: Champagne, mousseux | AC71: -3.01 | AD71: 0.04743315508
AA72: FA00049 | AB72: Apéritifs sans alcool | AC72: -2.99 | AD72: -5.734418605
AA73: FA00321 | AB73: Protections incontinence adultes | AC73: -2.95
AA74: FA00057 | AB74: Parapharmacie | AC74: -2.88 | AD74: -2.46
AA75: FA00086 | AB75: Pates fraIches | AC75: -2.86 | AD75: 1.520207792
AA76: FA00011 | AB76: Vinaigre | AC76: -2.83 | AD76: -2.231461538
AA77: FA00085 | AB77: Saurisserie | AC77: -2.73 | AD77: -2.813984962
AA78: FA00001 | AB78: Plats cuisinés | AC78: -2.65 | AD78: -3.142594262
AA79: FA00012 | AB79: Sel, poivre, épices, herbes | AC79: -2.44 | AD79: -2.032260597
AA80: FA00083 | AB80: Viande,volaill,charcut surg | AC80: -2.23 | AD80: -3.093451327
AA81: FA00025 | AB81: Poudres petits déjeuners | AC81: -1.97 | AD81: -2.34987013
AA82: FA00002 | AB82: Paté,rillet,sciss,foie gras | AC82: -1.76 | AD82: -2.277536232
AA83: FA00046 | AB83: Digestif,liqueur,eau de vie | AC83: -1.76 | AD83: -3.262857143
AA84: FA00081 | AB84: FRUITS MER, POISSON NAT, PANES, GRENOUILLE ESCARGOT | AC84: -1.61 | AD84: -2.70394402
AA85: FA00023 | AB85: Panification sèche | AC85: -1.6 | AD85: -1.386458797
AA86: FA00014 | AB86: Légumes vinaig, huile, saum | AC86: -1.55 | AD86: -0.6984585492
AA87: FA00053 | AB87: Maquillage | AC87: -1.48 | AD87: -20.82
AA88: FA00068 | AB88: Désodorisants d'intérieur | AC88: -1.19 | AD88: -2.725902256
AA89: FA00033 | AB89: Fruits au sirop, au jus | AC89: -0.38 | AD89: -0.4479710145
AA90: FA00097 | AB90: Huile moteur | AC90: -0.08 | AD90: -0.08
AA91: FA00039 | AB91: Sirop,concent,poudre boiss | AC91: 0.36 | AD91: 1.164977974
AA92: FA00044 | AB92: Vin (Table et Pays) | AC92: 1.17 | AD92: -0.588630137
AA93: FA00043 | AB93: Cidre, cider | AC93: 2.89 | AD93: 13.48333333

Sheet Régions
A1: Observatoire des prix et des marges
A3: Produits de grande consommation – Grande distribution
A12: A0 | D12: Alsace | G12: -1.96
A13: A1 | D13: Aquitaine | G13: -1.83
A14: A2 | D14: Auvergne | G14: -2.14
A15: A3 | D15: Basse-Normandie | G15: -1.52
A16: A4 | D16: Bourgogne | G16: -2.37
A17: A5 | D17: Bretagne | G17: -1.95
A18: A6 | D18: Centre | G18: -1.89
A19: A7 | D19: Champagne-Ardenne | G19: -2.09
A20: CC | D20: Corse | G20: -1.59
A21: A9 | D21: Franche-Comté | G21: -3.33
A22: B0 | D22: Haute-Normandie | G22: -2.08
A23: B1 | D23: Île-de-France | G23: -1.97
A24: B2 | D24: Languedoc-Roussillon | G24: -2.56
A25: B3 | D25: Limousin | G25: -2.39
A26: B4 | D26: Lorraine | G26: -2.09
A27: B5 | D27: Midi-Pyrénées | G27: -2.42
A28: B6 | D28: Nord-Pas-de-Calais | G28: -2.35
A29: B7 | D29: Pays de la Loire | G29: -2.15
A30: B8 | D30: Picardie | G30: -2.28
A31: B9 | D31: Poitou-Charentes | G31: -2
A32: C0 | D32: Provence-Alpes-Côte d'Azur | G32: -2.35
D33: Rhône-Alpes | G33: -2.14
